{"text_format":"1","workbook":"xlsx","n_sheets":2,"sheets":["1","2"],"not_rendered":{"charts":0,"images":0,"macros":1,"external_links":0,"defined_names":7,"comments":0,"pivot_tables":0},"unopened":[],"bounds":{"document_bytes":16777216,"sheet_cells":100000,"rows_first":2000,"rows_last":500,"rows_between":2000,"halvings":0,"cell_chars":16384,"cell_head_chars":4096},"cells_cut":0,"cells_raw":0,"read":"whole","date_system":"1900"}

{"sheet":"1","index":0,"n_rows":7,"n_cols":107,"rows_kept":7,"cut":false,"hidden":false,"merged":[[2,1,4,1],[2,2,4,2],[2,3,4,3],[3,7,4,7],[3,4,4,4],[3,5,3,6],[2,4,2,6],[2,7,2,14],[3,8,3,9],[3,10,3,12],[3,13,3,14],[2,15,4,15],[2,16,4,16],[3,25,4,25],[3,27,4,27],[3,26,4,26],[2,18,4,18],[2,22,4,22],[3,30,4,30],[3,24,4,24],[2,17,4,17],[2,66,4,66],[2,67,4,67],[2,63,4,63],[2,64,4,64],[2,65,4,65],[2,20,4,20],[2,23,2,30],[3,29,4,29],[2,21,4,21],[3,28,4,28],[3,23,4,23],[2,74,4,74],[2,75,4,75],[2,72,4,72],[3,90,4,90],[2,78,4,78],[2,84,2,88],[2,89,2,93],[3,93,4,93],[3,84,4,84],[3,85,4,85],[3,92,4,92],[2,80,4,80],[2,81,4,81],[2,82,4,82],[2,83,4,83],[3,91,4,91],[2,71,4,71],[2,68,4,68],[2,69,4,69],[2,70,4,70],[2,73,4,73],[3,89,4,89],[2,76,4,76],[3,105,3,106],[1,101,4,101],[1,102,4,102],[1,103,1,106],[2,103,2,106],[3,103,3,104],[2,77,4,77],[3,86,4,86],[3,87,4,87],[3,88,4,88]]}
[null,null,null,null,null,null,null,null,null,null,null,null,null,null,null,null,null,null,null,null,null,null,null,null,null,null,null,null,null,null,null,null,null,null,null,null,null,null,null,null,null,null,null,null,null,null,null,null,null,null,null,null,null,null,null,null,null,null,null,null,null,null,null,null,null,null,null,null,null,null,null,null,null,null,null,null,null,null,null,null,null,null,null,null,null,null,null,null,null,null,null,null,null,null,null,null,null,null,null,null,null,"Tabela Nr 26. Szkolenia z zakresu BHP pracowników cywilnych."]
[null,"Tabela Nr 19. Poszkodowani i wypadki pracowników cywilnych w Państwowej Straży Pożarnej.",null,null,null,null,null,null,null,null,null,null,null,null,null,null,null,null,null,null,"Tabela Nr 20. Okoliczności wypadków pracowników cywilnych.",null,null,null,null,null,null,null,null,null,null,null,null,null,null,null,null,null,null,null,null,null,null,null,null,null,null,null,null,null,null,null,null,null,null,null,null,null,null,null,null,null,null,"Tabela Nr 23. Następstwa wypadków pracowników cywilnych.",null,null,null,null,null,null,null,null,null,null,null,null,null,null,null,null,"Tabela Nr 24. Poszkodowani pracownicy cywilni według wieku, stażu pracy.",null,null,null,null,null,null,null,null,null,null,null,null,null,null,null,null,null,null,null,null,"Lp.","Jednostka organizaycjna PSP"]
[null,"Sprawozdanie za okres","Lp.","Jednostka organizacyjna PSP","Liczba wypadków pracowników cywilnych w PSP",null,null,"Liczba poszkodowanych pracowników cywilnych\nw wypadkach",null,null,null,null,null,null,null,"Liczba dni niezdolności pracowników cywilnych do pracy","Wskaźnik ciężkości wypadków (liczba dni niezdolności do pracy podzielona przez liczbę poszkodowanych pracowników cywilnych","Stan etatowy pracowników cywilnych w PSP stan na 31 grudnia","Wskaźnik częstotliwości wypadków (liczba poszkodowanych x 1000 podzielona przez liczbę pracowników cywilnych z rubryki 16)",null,"Lp.","Jednostka organizacyjna PSP","Wypadki ogółem","Wypadki zaistniałe podczas",null,null,null,null,null,null,null,null,null,null,null,null,null,null,null,null,null,null,null,null,null,null,null,null,null,null,null,null,null,null,null,null,null,null,null,null,null,null,null,"Lp.","Jednostka organizacyjna PSP","Ogółem poszkodowanych","Utrata kończyn lub ich części","Złamania, pęknięcia kości, zwichnięcia, skręcenia","Stłuczenie","Rany","Oparzenia, odmrożenia","Urazy ścięgien i mięśni","Obrażenia wewnętrzne","Zatrucia","Uszkodzenie wzroku","Urazy zębów i twarzoczaszki","Niedowłady, udary, zawały serca\n","Ostry zespół odcinka L/S","Inne następstwa\n",null,"Lp.","Jednostka organizacyjna PSP","Ilość wypadków","Ogółem poszkodowanych","Poszkodowani wg wieku",null,null,null,null,"Poszkodowani wg stażu pracy w dniu wypadku",null,null,null,null,null,null,null,null,null,null,null,null,null,"Pracownicy cywilni (w tym praktykanci i stażyści)"]
[null,null,null,null,"ogółem","w tym",null,"ogółem","w tym",null,"w tym",null,null,"w tym pracowników",null,null,null,null,null,null,null,null,null,"Szkolenia, ćwiczeń","Zajęć sportowych","Konserwacji i napraw sprzętu","Drogi do i z pracy","Podróży służbowej","Sprzatania pomieszczeń","Poruszania się po terenie zakładu pracy","Innych czynności",null,"Tabela Nr 21. Wydarzenia bezpośrednio powodujące wypadki pracowników cywilnych.",null,null,null,null,null,null,null,null,null,null,null,null,null,null,null,"Tabela Nr 22. Przyczyny wypadków pracowników cywilnych.",null,null,null,null,null,null,null,null,null,null,null,null,null,null,null,null,null,null,null,null,null,null,null,null,null,null,null,null,null,null,null,null,null,null,null,"Do 25lat","26-35lat","36-45 lat","46-55 lat","Ponad 55 lat","do 3 lat","4-7 lat","8-15 lat","16-25 lat","Ponad 25 lat",null,"Tabela Nr 25. Badania lekarskie pracowników cywilnych.",null,null,null,null,null,null,null,"Szkolenie wstępne",null,"Szkolenie okresowe"]
[null,null,null,null,null,"indywidualnych","zbiorowych",null,"Indywidualnych","zbiorowych","śmiertelnych","ciężkich","lekkich","biurowych","robotniczych",null,null,null,null,null,null,null,null,null,null,null,null,null,null,null,null,null,"Lp.","Jednostka organizacyjna PSP","Wypadki ogółem","Uderzenie, przygniecenie przez spadający, wysypujący, wylewający się czynnik materialny","Zetknięcie się lub uderzenie o nieruchome czynniki materialne","Zetknięcie się, uderzenie, pochwycenie, przygniecenie przez czynniki materialne będące w ruchu","Potknięcie się, poślizgnięcie, utrata równowagi, upadek, w tym z: wysokości, do zagłębień i otworów","Wypadek komunikacyjny","Skrajne temperatury, uciążliwe warunki atmosferyczne","Porażenie prądem elektrycznym","Wybuch","Zetknięcie się z substancjami chemicznymi, zakaźnymi, promieniowa-niem i innymi czynnikami niebezpiecz. i szkodliwymi","Fizyczne obciążenie dynamiczne","Kontakt ze zwierzętami","Inne wydarzenia (np. zadziałanie sił przyrody, inne)",null,"Lp.","Jednostka organizacyjna PSP","Wypadki ogółem","Wady konstrukcyjne, materiałowe, niewłaściwe wykonanie lub lokalizacja czynnika materiałowego","Utrata wytrzymałości awaria, naruszenie konstrukcji lub stateczności czynnika materialnego","Niewłaściwa eksploatacja czynnika materialnego","Trudne, nierówne, śliskie przejścia, przestrznie podłoże","Brak, nieużycie, niewłaściwy dobór lub niesprawność środków ochronnych","Niewłaściwa organizacja pracy, brak nadzoru","Nieprzestrzeganie przepisów i zasad bhp, niewłaściwe wykonywa-nie pracy","Niewłaściwy stan psychofizyczny","Nieprawidłowe zachowanie się, nieostrożność nieuwaga własna oraz osób trzecich","Brak lub niewłaściwe przeszkolenie w zakresie bhp albo niedostateczne przygotowanie zawodowe","Nagłe przypadki medyczne i inne przyczyny",null,null,null,null,null,null,null,null,null,null,null,null,null,null,null,null,null,null,null,null,null,null,null,null,null,null,null,null,null,null,null,null,null,"Lp.","Jednostka organizacyjna PSP","Liczba osób zobowiązanych do przeprowadzenia badań lekarskich","Liczba osób, które wykonały badania lekarskie","Przyczyny niewykonania badań profilaktycznych",null,null,null,"Liczba osób podlegających szkoleniu","Liczba osób przeszkolonych","Liczba osób podlegających szkoleniu","Liczba osób przeszkolonych"]
[null,0,1,2,3,4,5,6,7,8,9,10,11,12,13,14,15,16,17,null,1,2,3,4,5,6,7,8,9,10,11,null,1,1,2,3,4,5,6,7,8,9,10,11,12,13,14,null,1,1,2,3,4,5,6,7,8,9,10,11,12,13,null,1,2,3,4,5,6,7,8,9,10,11,12,13,14,15,16,null,1,2,3,4,5,6,7,8,9,10,11,12,13,14,null,1,2,3,4,5,null,1,2,3,4,5,6]
[null,"cały rok",1,null,null,null,null,{"$f":"SUM(I7:J7)","v":0},{"$f":"F7","v":0},null,null,null,null,null,null,null,{"$f":"ROUND(P7/(I7+J7),2)","v":{"$error":"#DIV/0!"}},null,{"$f":"ROUND(((I7+J7)*1000)/R7,2)","v":{"$error":"#DIV/0!"}},0,1,{"$f":"$D$7","v":0},{"$f":"E7","v":0},null,null,null,null,null,null,null,null,null,1,{"$f":"$D$7","v":0},{"$f":"W7","v":0},null,null,null,null,null,null,null,null,null,null,null,null,null,1,{"$f":"$D$7","v":0},{"$f":"W7","v":0},null,null,null,null,null,null,null,null,null,null,null,null,1,{"$f":"$D$7","v":0},{"$f":"H7","v":0},null,null,null,null,null,null,null,null,null,null,null,null,null,null,1,{"$f":"$D$7","v":0},{"$f":"$E7","v":0},{"$f":"$H7","v":0},null,null,null,null,null,null,null,null,null,null,null,1,{"$f":"D7","v":0},null,null,null,null,1,{"$f":"CS7","v":0}]

{"sheet":"2","index":1,"n_rows":860,"n_cols":17,"rows_kept":860,"cut":false,"hidden":true,"merged":[[0,2,0,3],[1,1,4,1],[1,2,4,2],[1,3,4,3]]}
[null,null,"Komenda2"]
[null,"Lp.","Komenda"]
[]
[]
[null,null,null,null,null,"f7f23",null,"h7h860"]
[null,1,2,3,null,"wojewodztwo",null,"filtrowanie"]
[null,"dolnośląskie","KW PSP Wrocław","Komenda",null,"dolnośląskie",null,"dolnośląskie","KW PSP Wrocław",null,null,null,{"$f":"LEN(C7)","v":14},{"$f":"LEN(D7)","v":7},null,null,{"$f":"EXACT(D7,D6)","v":false}]
[null,"dolnośląskie","KP Bolesławiec","Komenda",null,"kujawsko-pomorskie",null,"dolnośląskie","KP Bolesławiec",null,null,null,14,7,null,null,{"$f":"EXACT(D8,D7)","v":true}]
[null,"dolnośląskie","KP Bolesławiec","JRG Bolesławiec",null,"lubelskie",null,"dolnośląskie","KP Dzierżoniów",null,null,null,14,15,null,null,false]
[null,"dolnośląskie","KP Dzierżoniów","Komenda",null,"lubuskie",null,"dolnośląskie","KP Głogów",null,null,null,14,7,null,null,false]
[null,"dolnośląskie","KP Dzierżoniów","JRG Dzierżoniów",null,"łódzkie",null,"dolnośląskie","KP Góra",null,null,null,14,15,null,null,false]
[null,"dolnośląskie","KP Głogów","Komenda",null,"małopolskie",null,"dolnośląskie","KP Jawor",null,null,null,9,7,null,null,false]
[null,"dolnośląskie","KP Głogów","JRG Głogów ",null,"mazowieckie",null,"dolnośląskie","KM Jelenia Góra",null,null,null,9,11,null,null,false]
[null,"dolnośląskie","KP Góra","Komenda",null,"opolskie",null,"dolnośląskie","KP Kamienna Góra",null,null,null,7,7,null,null,false]
[null,"dolnośląskie","KP Góra","JRG Góra ",null,"podkarpackie",null,"dolnośląskie","KP Kłodzko",null,null,null,7,9,null,null,false]
[null,"dolnośląskie","KP Jawor","Komenda",null,"podlaskie",null,"dolnośląskie","KM Legnica",null,null,null,8,7,null,null,false]
[null,"dolnośląskie","KP Jawor","JRG Jawor",null,"pomorskie",null,"dolnośląskie","KP Lubań",null,null,null,8,9,null,null,false]
[null,"dolnośląskie","KM Jelenia Góra","Komenda",null,"śląskie",null,"dolnośląskie","KP Lubin",null,null,null,15,7,null,null,false]
[null,"dolnośląskie","KM Jelenia Góra","JRG Jelenia Góra 1",null,"świętokrzyskie",null,"dolnośląskie","KP Lwówek Śląski",null,null,null,15,18,null,null,false]
[null,"dolnośląskie","KM Jelenia Góra","JRG Jelenia Góra 2",null,"warmińsko-mazurskie",null,"dolnośląskie","KP Milicz",null,null,null,15,18,null,null,false]
[null,"dolnośląskie","KP Kamienna Góra","Komenda",null,"wielkopolskie",null,"dolnośląskie","KP Oleśnica",null,null,null,16,7,null,null,false]
[null,"dolnośląskie","KP Kamienna Góra","JRG Kam.  Góra",null,"zachodniopomorskie",null,"dolnośląskie","KP Oława",null,null,null,16,14,null,null,false]
[null,"dolnośląskie","KP Kłodzko","Komenda",null,"zz jednostka centralna",null,"dolnośląskie","KP Polkowice",null,null,null,10,7,null,null,false]
[null,"dolnośląskie","KP Kłodzko","JRG Kłodzko 1",null,null,null,"dolnośląskie","KP Strzelin",null,null,null,10,13,null,null,false]
[null,"dolnośląskie","KP Kłodzko","JRG Bystrzyca Kl.",null,null,null,"dolnośląskie","KP Środa Śląska",null,null,null,10,17,null,null,false]
[null,"dolnośląskie","KP Kłodzko","JRG Nowa Ruda ",null,null,null,"dolnośląskie","KP Świdnica",null,null,null,10,14,null,null,false]
[null,"dolnośląskie","KM Legnica","Komenda",null,null,null,"dolnośląskie","KP Trzebnica",null,null,null,10,7,null,null,false]
[null,"dolnośląskie","KM Legnica","Legnica 1",null,null,null,"dolnośląskie","KM Wałbrzych",null,null,null,10,9,null,null,false]
[null,"dolnośląskie","KM Legnica","Legnica 2",null,null,null,"dolnośląskie","KP Wołów",null,null,null,10,9,null,null,false]
[null,"dolnośląskie","KM Legnica","Chojnów ",null,null,null,"dolnośląskie","KM Wrocław",null,null,null,10,8,null,null,false]
[null,"dolnośląskie","KP Lubań","Komenda",null,null,null,"dolnośląskie","KP Ząbkowice Śląskie",null,null,null,8,7,null,null,false]
[null,"dolnośląskie","KP Lubań","JRG Lubań ",null,null,null,"dolnośląskie","KP Zgorzelec",null,null,null,8,10,null,null,false]
[null,"dolnośląskie","KP Lubin","Komenda",null,null,null,"dolnośląskie","KP Złotoryja",null,null,null,8,7,null,null,false]
[null,"dolnośląskie","KP Lubin","JRG Lubin ",null,null,null,"kujawsko-pomorskie","KW PSP Toruń",null,null,null,8,10,null,null,false]
[null,"dolnośląskie","KP Lwówek Śląski","Komenda",null,null,null,"kujawsko-pomorskie","KP Aleksandrów Kujawski",null,null,null,16,7,null,null,false]
[null,"dolnośląskie","KP Lwówek Śląski","JRG Lwówek Sl.",null,null,null,"kujawsko-pomorskie","KP Brodnica",null,null,null,16,14,null,null,false]
[null,"dolnośląskie","KP Milicz","Komenda",null,null,null,"kujawsko-pomorskie","KM Bydgoszcz",null,null,null,9,7,null,null,false]
[null,"dolnośląskie","KP Milicz","JRG Milicz",null,null,null,"kujawsko-pomorskie","KP Chełmno",null,null,null,9,10,null,null,false]
[null,"dolnośląskie","KP Oleśnica","Komenda",null,null,null,"kujawsko-pomorskie","KP Golub Dobrzyń",null,null,null,11,7,null,null,false]
[null,"dolnośląskie","KP Oleśnica","JRG Oleśnica ",null,null,null,"kujawsko-pomorskie","KM Grudziądz",null,null,null,11,13,null,null,false]
[null,"dolnośląskie","KP Oleśnica","JRG Syców ",null,null,null,"kujawsko-pomorskie","KP Inowrocław",null,null,null,11,10,null,null,false]
[null,"dolnośląskie","KP Oława","Komenda",null,null,null,"kujawsko-pomorskie","KP Lipno",null,null,null,8,7,null,null,false]
[null,"dolnośląskie","KP Oława","JRG Oława ",null,null,null,"kujawsko-pomorskie","KP Mogilno",null,null,null,8,10,null,null,false]
[null,"dolnośląskie","KP Oława","JRG Jelcz ",null,null,null,"kujawsko-pomorskie","KP Nakło",null,null,null,8,10,null,null,false]
[null,"dolnośląskie","KP Polkowice","Komenda",null,null,null,"kujawsko-pomorskie","KP Radziejów",null,null,null,12,7,null,null,false]
[null,"dolnośląskie","KP Polkowice","JRG Polkowice ",null,null,null,"kujawsko-pomorskie","KP Rypin",null,null,null,12,14,null,null,false]
[null,"dolnośląskie","KP Strzelin","Komenda",null,null,null,"kujawsko-pomorskie","KP Sępólno Krajeńskie ",null,null,null,11,7,null,null,false]
[null,"dolnośląskie","KP Strzelin","JRG Strzelin ",null,null,null,"kujawsko-pomorskie","KP Świecie",null,null,null,11,13,null,null,false]
[null,"dolnośląskie","KP Środa Śląska","Komenda",null,null,null,"kujawsko-pomorskie","KM Toruń",null,null,null,15,7,null,null,false]
[null,"dolnośląskie","KP Środa Śląska","JRG Środa Śląska ",null,null,null,"kujawsko-pomorskie","KP Tuchola",null,null,null,15,17,null,null,false]
[null,"dolnośląskie","KP Świdnica","Komenda",null,null,null,"kujawsko-pomorskie","KP Wąbrzeźno",null,null,null,11,7,null,null,false]
[null,"dolnośląskie","KP Świdnica","JRG Świdnica",null,null,null,"kujawsko-pomorskie","KM Włocławek",null,null,null,11,12,null,null,false]
[null,"dolnośląskie","KP Świdnica","JRG Świebodzice ",null,null,null,"kujawsko-pomorskie","KP Żnin",null,null,null,11,16,null,null,false]
[null,"dolnośląskie","KP Trzebnica","Komenda",null,null,null,"lubelskie","KW PSP Lublin",null,null,null,12,7,null,null,false]
[null,"dolnośląskie","KP Trzebnica","JRG Trzebnica ",null,null,null,"lubelskie","KM Biała Podlaska",null,null,null,12,14,null,null,false]
[null,"dolnośląskie","KM Wałbrzych","Komenda",null,null,null,"lubelskie","KP Biłgoraj",null,null,null,12,7,null,null,false]
[null,"dolnośląskie","KM Wałbrzych","JRG Wałbrzych 1",null,null,null,"lubelskie","KM Chełm",null,null,null,12,15,null,null,false]
[null,"dolnośląskie","KM Wałbrzych","JRG Wałbrzych 2",null,null,null,"lubelskie","KP Hrubieszów",null,null,null,12,15,null,null,false]
[null,"dolnośląskie","KP Wołów","Komenda",null,null,null,"lubelskie","KP PSP Janów Lubelski",null,null,null,8,7,null,null,false]
[null,"dolnośląskie","KP Wołów","JRG Wołów ",null,null,null,"lubelskie","KP Krasnystaw",null,null,null,8,10,null,null,false]
[null,"dolnośląskie","KM Wrocław","Komenda",null,null,null,"lubelskie","KP Kraśnik",null,null,null,10,7,null,null,false]
[null,"dolnośląskie","KM Wrocław","JRG Wrocław 1",null,null,null,"lubelskie","KP Lubartów",null,null,null,10,13,null,null,false]
[null,"dolnośląskie","KM Wrocław","JRG Wrocław 2",null,null,null,"lubelskie","KM Lublin",null,null,null,10,13,null,null,false]
[null,"dolnośląskie","KM Wrocław","JRG Wrocław 3",null,null,null,"lubelskie","KP Łęczna",null,null,null,10,13,null,null,false]
[null,"dolnośląskie","KM Wrocław","JRG Wrocław 4",null,null,null,"lubelskie","KP Łuków",null,null,null,10,13,null,null,false]
[null,"dolnośląskie","KM Wrocław","JRG Wrocław 5",null,null,null,"lubelskie","KP Opole Lubelskie",null,null,null,10,13,null,null,false]
[null,"dolnośląskie","KM Wrocław","JRG  Katy Wroc.",null,null,null,"lubelskie","KP Parczew",null,null,null,10,15,null,null,false]
[null,"dolnośląskie","KM Wrocław","JRG Wrocław 7",null,null,null,"lubelskie","KP Puławy",null,null,null,10,13,null,null,false]
[null,"dolnośląskie","KM Wrocław","JRG Wrocław 8 ",null,null,null,"lubelskie","KP Radzyń Podlaski",null,null,null,10,14,null,null,false]
[null,"dolnośląskie","KM Wrocław","JRG Wrocław 9",null,null,null,"lubelskie","KP Ryki",null,null,null,10,13,null,null,false]
[null,"dolnośląskie","KP Ząbkowice Śląskie","Komenda",null,null,null,"lubelskie","KP Świdnik",null,null,null,{"$f":"LEN(C71)","v":20},{"$f":"LEN(D71)","v":7},null,null,false]
[null,"dolnośląskie","KP Ząbkowice Śląskie","JRG Ząbkowice",null,null,null,"lubelskie","KP Tomaszów Lubelski",null,null,null,20,13,null,null,{"$f":"EXACT(D72,D71)","v":false}]
[null,"dolnośląskie","KP Zgorzelec","Komenda",null,null,null,"lubelskie","KP Włodawa",null,null,null,12,7,null,null,false]
[null,"dolnośląskie","KP Zgorzelec","JRG Zgorzelec",null,null,null,"lubelskie","KM Zamość",null,null,null,12,13,null,null,false]
[null,"dolnośląskie","KP Zgorzelec","JRG Bogatynia ",null,null,null,"lubuskie","KW PSP Gorzów Wlkp.",null,null,null,12,14,null,null,false]
[null,"dolnośląskie","KP Złotoryja","Komenda",null,null,null,"lubuskie","KM Gorzów Wlkp.",null,null,null,12,7,null,null,false]
[null,"dolnośląskie","KP Złotoryja","JRG Złotoryja ",null,null,null,"lubuskie","KP Krosno Odrz.",null,null,null,12,14,null,null,false]
[null,"kujawsko-pomorskie","KW PSP Toruń","Komenda",null,null,null,"lubuskie","KP Międzyrzecz",null,null,null,12,7,null,null,false]
[null,"kujawsko-pomorskie","KP Aleksandrów Kujawski","Komenda",null,null,null,"lubuskie","KP Nowa Sól",null,null,null,23,7,null,null,true]
[null,"kujawsko-pomorskie","KP Aleksandrów Kujawski","Aleksandrów Kuj.",null,null,null,"lubuskie","KP Słubice",null,null,null,23,16,null,null,false]
[null,"kujawsko-pomorskie","KP Aleksandrów Kujawski","Ciechocinek",null,null,null,"lubuskie","KP Strzelce Kraj.",null,null,null,23,11,null,null,false]
[null,"kujawsko-pomorskie","KP Brodnica","Komenda",null,null,null,"lubuskie","KP Sulęcin",null,null,null,11,7,null,null,false]
[null,"kujawsko-pomorskie","KP Brodnica","JRG Brodnica",null,null,null,"lubuskie","KP Świebodzin",null,null,null,11,12,null,null,false]
[null,"kujawsko-pomorskie","KM Bydgoszcz","Komenda",null,null,null,"lubuskie","KP Wschowa",null,null,null,12,7,null,null,false]
[null,"kujawsko-pomorskie","KM Bydgoszcz","Bydgoszcz 1",null,null,null,"lubuskie","KM Zielona Góra",null,null,null,12,11,null,null,false]
[null,"kujawsko-pomorskie","KM Bydgoszcz","Bydgoszcz 2",null,null,null,"lubuskie","KP Żagań",null,null,null,12,11,null,null,false]
[null,"kujawsko-pomorskie","KM Bydgoszcz","Bydgoszcz 3 ",null,null,null,"lubuskie","KP Żary",null,null,null,12,12,null,null,false]
[null,"kujawsko-pomorskie","KM Bydgoszcz","Bydgoszcz 4 ",null,null,null,"łódzkie","KW PSP Łódź",null,null,null,12,12,null,null,false]
[null,"kujawsko-pomorskie","KP Chełmno","Komenda",null,null,null,"łódzkie","KP Bełchatów",null,null,null,10,7,null,null,false]
[null,"kujawsko-pomorskie","KP Chełmno","Chełmno",null,null,null,"łódzkie","KP Brzeziny",null,null,null,10,7,null,null,false]
[null,"kujawsko-pomorskie","KP Golub Dobrzyń","Komenda",null,null,null,"łódzkie","KP Kutno",null,null,null,16,7,null,null,false]
[null,"kujawsko-pomorskie","KP Golub Dobrzyń","Golub Dobrzyń",null,null,null,"łódzkie","KP Łask",null,null,null,16,13,null,null,false]
[null,"kujawsko-pomorskie","KM Grudziądz","Komenda",null,null,null,"łódzkie","KP Łęczyca",null,null,null,12,7,null,null,false]
[null,"kujawsko-pomorskie","KM Grudziądz","Grudziądz 1",null,null,null,"łódzkie","KP Łowicz",null,null,null,12,11,null,null,false]
[null,"kujawsko-pomorskie","KM Grudziądz","Grudziądz 2",null,null,null,"łódzkie","KM Łódź",null,null,null,12,11,null,null,false]
[null,"kujawsko-pomorskie","KP Inowrocław","Komenda",null,null,null,"łódzkie","KP Łódź Wschód",null,null,null,13,7,null,null,false]
[null,"kujawsko-pomorskie","KP Inowrocław","Inowrocław 1",null,null,null,"łódzkie","KP Opoczno",null,null,null,13,12,null,null,false]
[null,"kujawsko-pomorskie","KP Inowrocław","Inowrocław 2",null,null,null,"łódzkie","KP Pabianice",null,null,null,13,12,null,null,false]
[null,"kujawsko-pomorskie","KP Lipno","Komenda",null,null,null,"łódzkie","KP Pajęczno",null,null,null,8,7,null,null,false]
[null,"kujawsko-pomorskie","KP Lipno","Lipno ",null,null,null,"łódzkie","KM Piotrków Trybunalski",null,null,null,8,6,null,null,false]
[null,"kujawsko-pomorskie","KP Mogilno","Komenda",null,null,null,"łódzkie","KP Poddębice",null,null,null,10,7,null,null,false]
[null,"kujawsko-pomorskie","KP Mogilno","Mogilno",null,null,null,"łódzkie","KP Radomsko",null,null,null,10,7,null,null,false]
[null,"kujawsko-pomorskie","KP Nakło","Komenda",null,null,null,"łódzkie","KP Rawa Mazowiecka",null,null,null,8,7,null,null,false]
[null,"kujawsko-pomorskie","KP Nakło","Nakło",null,null,null,"łódzkie","KP PSP Sieradz",null,null,null,8,5,null,null,false]
[null,"kujawsko-pomorskie","KP Nakło","Szubin",null,null,null,"łódzkie","KM PSP Skierniewice",null,null,null,8,6,null,null,false]
[null,"kujawsko-pomorskie","KP Radziejów","Komenda",null,null,null,"łódzkie","KP Tomaszów Maz.",null,null,null,12,7,null,null,false]
[null,"kujawsko-pomorskie","KP Radziejów","Radziejów",null,null,null,"łódzkie","KP Wieluń",null,null,null,12,9,null,null,false]
[null,"kujawsko-pomorskie","KP Rypin","Komenda",null,null,null,"łódzkie","KP Wieruszów",null,null,null,8,7,null,null,false]
[null,"kujawsko-pomorskie","KP Rypin","Rypin",null,null,null,"łódzkie","KP PSP Zduńska Wola",null,null,null,8,5,null,null,false]
[null,"kujawsko-pomorskie","KP Sępólno Krajeńskie ","Komenda",null,null,null,"łódzkie","KP PSP Zgierz",null,null,null,22,7,null,null,false]
[null,"kujawsko-pomorskie","KP Sępólno Krajeńskie ","Sępólno Kraj.",null,null,null,"małopolskie","KW PSP Kraków",null,null,null,22,13,null,null,false]
[null,"kujawsko-pomorskie","KP Świecie","Komenda",null,null,null,"małopolskie","KP Bochnia",null,null,null,10,7,null,null,false]
[null,"kujawsko-pomorskie","KP Świecie","Świecie",null,null,null,"małopolskie","KP Brzesko",null,null,null,10,7,null,null,false]
[null,"kujawsko-pomorskie","KM Toruń","Komenda",null,null,null,"małopolskie","KP Chrzanów",null,null,null,8,7,null,null,false]
[null,"kujawsko-pomorskie","KM Toruń","Toruń 1",null,null,null,"małopolskie","KP Dąbrowa Tarnowska",null,null,null,8,7,null,null,false]
[null,"kujawsko-pomorskie","KM Toruń","Toruń 2",null,null,null,"małopolskie","KP PSP Gorlice",null,null,null,8,7,null,null,false]
[null,"kujawsko-pomorskie","KM Toruń","Toruń 3",null,null,null,"małopolskie","KM Kraków",null,null,null,8,7,null,null,false]
[null,"kujawsko-pomorskie","KM Toruń","Chełmża",null,null,null,"małopolskie","KP Limanowa",null,null,null,8,7,null,null,false]
[null,"kujawsko-pomorskie","KP Tuchola","Komenda",null,null,null,"małopolskie","KP Miechów",null,null,null,10,7,null,null,false]
[null,"kujawsko-pomorskie","KP Tuchola","Tuchola",null,null,null,"małopolskie","KP Myślenice ",null,null,null,10,7,null,null,false]
[null,"kujawsko-pomorskie","KP Wąbrzeźno","Komenda",null,null,null,"małopolskie","KM PSP Nowy Sącz",null,null,null,12,7,null,null,false]
[null,"kujawsko-pomorskie","KP Wąbrzeźno","Wąbrzeźno",null,null,null,"małopolskie","KP Nowy Targ",null,null,null,12,9,null,null,false]
[null,"kujawsko-pomorskie","KM Włocławek","Komenda",null,null,null,"małopolskie","KP Olkusz",null,null,null,12,7,null,null,false]
[null,"kujawsko-pomorskie","KM Włocławek","Włocławek 1",null,null,null,"małopolskie","KP Oświęcim",null,null,null,12,11,null,null,false]
[null,"kujawsko-pomorskie","KM Włocławek","Włocławek 2",null,null,null,"małopolskie","KP Proszowice",null,null,null,12,11,null,null,false]
[null,"kujawsko-pomorskie","KP Żnin","Komenda",null,null,null,"małopolskie","KP Sucha Beskidzka",null,null,null,7,7,null,null,false]
[null,"kujawsko-pomorskie","KP Żnin","Żnin",null,null,null,"małopolskie","KM Tarnów",null,null,null,7,4,null,null,false]
[null,"lubelskie","KW PSP Lublin","Komenda",null,null,null,"małopolskie","KP PSP Wadowice",null,null,null,13,7,null,null,false]
[null,"lubelskie","KM Biała Podlaska","Komenda",null,null,null,"małopolskie","KP Wieliczka",null,null,null,17,7,null,null,true]
[null,"lubelskie","KM Biała Podlaska","Biała Podlaska",null,null,null,"małopolskie","KP Zakopane",null,null,null,17,14,null,null,false]
[null,"lubelskie","KM Biała Podlaska","Międzyrzec Podl.",null,null,null,"mazowieckie","KW PSP Warszawa",null,null,null,17,16,null,null,false]
[null,"lubelskie","KM Biała Podlaska","Małaszewicze",null,null,null,"mazowieckie","KP Białobrzegi",null,null,null,17,12,null,null,false]
[null,"lubelskie","KP Biłgoraj","Komenda",null,null,null,"mazowieckie","KP Ciechanów",null,null,null,11,7,null,null,false]
[null,"lubelskie","KP Biłgoraj","Biłgoraj",null,null,null,"mazowieckie","KP Garwolin",null,null,null,11,8,null,null,false]
[null,"lubelskie","KM Chełm","Komenda",null,null,null,"mazowieckie","KP Gostynin",null,null,null,{"$f":"LEN(C135)","v":8},{"$f":"LEN(D135)","v":7},null,null,false]
[null,"lubelskie","KM Chełm","Nr 1",null,null,null,"mazowieckie","KP Grodzisk Maz.",null,null,null,8,4,null,null,{"$f":"EXACT(D136,D135)","v":false}]
[null,"lubelskie","KM Chełm","Nr 2",null,null,null,"mazowieckie","KP Grójec",null,null,null,8,4,null,null,false]
[null,"lubelskie","KP Hrubieszów","Komenda",null,null,null,"mazowieckie","KP Kozienice",null,null,null,13,7,null,null,false]
[null,"lubelskie","KP Hrubieszów","Hrubieszów",null,null,null,"mazowieckie","KP Legionowo",null,null,null,13,10,null,null,false]
[null,"lubelskie","KP PSP Janów Lubelski","Komenda",null,null,null,"mazowieckie","KP Lipsko",null,null,null,21,7,null,null,false]
[null,"lubelskie","KP PSP Janów Lubelski","Janów Lubelski",null,null,null,"mazowieckie","KP Łosice",null,null,null,21,14,null,null,false]
[null,"lubelskie","KP Krasnystaw","Komenda",null,null,null,"mazowieckie","KP Maków Maz.",null,null,null,13,7,null,null,false]
[null,"lubelskie","KP Krasnystaw","Krasnystaw",null,null,null,"mazowieckie","KP Mińsk Maz.",null,null,null,13,10,null,null,false]
[null,"lubelskie","KP Kraśnik","Komenda",null,null,null,"mazowieckie","KP Mława",null,null,null,10,7,null,null,false]
[null,"lubelskie","KP Kraśnik","Kraśnik",null,null,null,"mazowieckie","KP Nowy Dwór Maz.",null,null,null,10,7,null,null,false]
[null,"lubelskie","KP Lubartów","Komenda",null,null,null,"mazowieckie","KM Ostrołęka",null,null,null,11,7,null,null,false]
[null,"lubelskie","KP Lubartów","Lubartów",null,null,null,"mazowieckie","KP Ostrów Maz.",null,null,null,11,8,null,null,false]
[null,"lubelskie","KM Lublin","Komenda",null,null,null,"mazowieckie","KP Otwock",null,null,null,9,7,null,null,false]
[null,"lubelskie","KM Lublin","Nr 1",null,null,null,"mazowieckie","KP Piaseczno",null,null,null,9,4,null,null,false]
[null,"lubelskie","KM Lublin","Nr 2",null,null,null,"mazowieckie","KM Płock",null,null,null,9,4,null,null,false]
[null,"lubelskie","KM Lublin","Nr 3",null,null,null,"mazowieckie","KP Płońsk",null,null,null,9,4,null,null,false]
[null,"lubelskie","KM Lublin","Bełżyce",null,null,null,"mazowieckie","KP Pruszków",null,null,null,9,7,null,null,false]
[null,"lubelskie","KM Lublin","Bychawa",null,null,null,"mazowieckie","KP Przasnysz",null,null,null,9,7,null,null,false]
[null,"lubelskie","KM Lublin","Nr 4",null,null,null,"mazowieckie","KP Przysucha",null,null,null,9,4,null,null,false]
[null,"lubelskie","KP Łęczna","Komenda",null,null,null,"mazowieckie","KP Pułtusk",null,null,null,9,7,null,null,false]
[null,"lubelskie","KP Łęczna","Łęczna",null,null,null,"mazowieckie","KM Radom",null,null,null,9,6,null,null,false]
[null,"lubelskie","KP Łuków","Komenda",null,null,null,"mazowieckie","KM Siedlce",null,null,null,8,7,null,null,false]
[null,"lubelskie","KP Łuków","Łuków",null,null,null,"mazowieckie","KP Sierpc",null,null,null,8,5,null,null,false]
[null,"lubelskie","KP Opole Lubelskie","Komenda",null,null,null,"mazowieckie","KP Sochaczew",null,null,null,18,7,null,null,false]
[null,"lubelskie","KP Opole Lubelskie","Opole Lubelskie",null,null,null,"mazowieckie","KP Sokołów Podl.",null,null,null,18,15,null,null,false]
[null,"lubelskie","KP Parczew","Komenda",null,null,null,"mazowieckie","KP Szydłowiec",null,null,null,10,7,null,null,false]
[null,"lubelskie","KP Parczew","Parczew",null,null,null,"mazowieckie","KP pow. warszawskiego zachodniego",null,null,null,10,7,null,null,false]
[null,"lubelskie","KP Puławy","Komenda",null,null,null,"mazowieckie","KP Węgrów",null,null,null,9,7,null,null,false]
[null,"lubelskie","KP Puławy","Puławy",null,null,null,"mazowieckie","KP Wołomin",null,null,null,9,6,null,null,false]
[null,"lubelskie","KP Radzyń Podlaski","Komenda",null,null,null,"mazowieckie","KP Wyszków",null,null,null,18,7,null,null,false]
[null,"lubelskie","KP Radzyń Podlaski","Radzyń Podlaski",null,null,null,"mazowieckie","KP Zwoleń",null,null,null,18,15,null,null,false]
[null,"lubelskie","KP Ryki","Komenda",null,null,null,"mazowieckie","KP Żuromin",null,null,null,7,7,null,null,false]
[null,"lubelskie","KP Ryki","Ryki",null,null,null,"mazowieckie","KP Żyrardów",null,null,null,7,4,null,null,false]
[null,"lubelskie","KP Świdnik","Komenda",null,null,null,"mazowieckie","KM m. st. Warszawy ",null,null,null,10,7,null,null,false]
[null,"lubelskie","KP Świdnik","Świdnik",null,null,null,"opolskie","KW PSP Opole",null,null,null,10,7,null,null,false]
[null,"lubelskie","KP Tomaszów Lubelski","Komenda",null,null,null,"opolskie","KP PSP Brzeg",null,null,null,20,7,null,null,false]
[null,"lubelskie","KP Tomaszów Lubelski","Tomaszów Lubelski",null,null,null,"opolskie","KP PSP Głubczyce",null,null,null,20,17,null,null,false]
[null,"lubelskie","KP Włodawa","Komenda",null,null,null,"opolskie","KP PSP Kędzierzyn-Koźle",null,null,null,10,7,null,null,false]
[null,"lubelskie","KP Włodawa","Włodawa",null,null,null,"opolskie","KP PSP Kluczbork",null,null,null,10,7,null,null,false]
[null,"lubelskie","KM Zamość","Komenda",null,null,null,"opolskie","KP PSP Krapkowice",null,null,null,9,7,null,null,false]
[null,"lubelskie","KM Zamość","Zamość",null,null,null,"opolskie","KP PSP Namysłów",null,null,null,9,6,null,null,false]
[null,"lubelskie","KM Zamość","Szczebrzeszyn",null,null,null,"opolskie","KP PSP Nysa",null,null,null,9,13,null,null,false]
[null,"lubuskie","KW PSP Gorzów Wlkp.","Komenda",null,null,null,"opolskie","KP PSP Olesno",null,null,null,19,7,null,null,false]
[null,"lubuskie","KM Gorzów Wlkp.","Komenda",null,null,null,"opolskie","KM PSP Opole",null,null,null,15,7,null,null,true]
[null,"lubuskie","KM Gorzów Wlkp.","Gorzów Wlkp. 1",null,null,null,"opolskie","KP PSP Prudnik",null,null,null,15,14,null,null,false]
[null,"lubuskie","KM Gorzów Wlkp.","Gorzów Wlkp. 2",null,null,null,"opolskie","KP PSP Strzelce Opolskie",null,null,null,15,14,null,null,false]
[null,"lubuskie","KM Gorzów Wlkp.","Kostrzyn",null,null,null,"podkarpackie","KW PSP Rzeszów",null,null,null,15,8,null,null,false]
[null,"lubuskie","KP Krosno Odrz.","Komenda",null,null,null,"podkarpackie","KM Krosno",null,null,null,15,7,null,null,false]
[null,"lubuskie","KP Krosno Odrz.","Krosno Odrz.",null,null,null,"podkarpackie","KM Przemyśl",null,null,null,15,12,null,null,false]
[null,"lubuskie","KP Krosno Odrz.","Gubin",null,null,null,"podkarpackie","KM Rzeszów",null,null,null,15,5,null,null,false]
[null,"lubuskie","KP Międzyrzecz","Komenda",null,null,null,"podkarpackie","KM Tarnobrzeg",null,null,null,14,7,null,null,false]
[null,"lubuskie","KP Międzyrzecz","Międzyrzecz",null,null,null,"podkarpackie","KP Brzozów",null,null,null,14,11,null,null,false]
[null,"lubuskie","KP Nowa Sól","Komenda",null,null,null,"podkarpackie","KP Dębica",null,null,null,11,7,null,null,false]
[null,"lubuskie","KP Nowa Sól","Nowa Sól",null,null,null,"podkarpackie","KP Jarosław",null,null,null,11,8,null,null,false]
[null,"lubuskie","KP Słubice","Komenda",null,null,null,"podkarpackie","KP Jasło",null,null,null,10,7,null,null,false]
[null,"lubuskie","KP Słubice","Słubice",null,null,null,"podkarpackie","KP Kolbuszowa",null,null,null,10,7,null,null,false]
[null,"lubuskie","KP Strzelce Kraj.","Komenda",null,null,null,"podkarpackie","KP Lesko",null,null,null,17,7,null,null,false]
[null,"lubuskie","KP Strzelce Kraj.","Strzelce Kraj.",null,null,null,"podkarpackie","KP Leżajsk",null,null,null,17,14,null,null,false]
[null,"lubuskie","KP Sulęcin","Komenda",null,null,null,"podkarpackie","KP Lubaczów",null,null,null,10,7,null,null,false]
[null,"lubuskie","KP Sulęcin","Sulęcin",null,null,null,"podkarpackie","KP Łańcut",null,null,null,10,7,null,null,false]
[null,"lubuskie","KP Świebodzin","Komenda",null,null,null,"podkarpackie","KP Mielec",null,null,null,13,7,null,null,false]
[null,"lubuskie","KP Świebodzin","Świebodzin",null,null,null,"podkarpackie","KP Nisko",null,null,null,13,10,null,null,false]
[null,"lubuskie","KP Wschowa","Komenda",null,null,null,"podkarpackie","KP Przeworsk",null,null,null,10,7,null,null,false]
[null,"lubuskie","KP Wschowa","Wschowa",null,null,null,"podkarpackie","KP Ropczyce",null,null,null,{"$f":"LEN(C199)","v":10},{"$f":"LEN(D199)","v":7},null,null,false]
[null,"lubuskie","KM Zielona Góra","Komenda",null,null,null,"podkarpackie","KP Sanok",null,null,null,15,7,null,null,{"$f":"EXACT(D200,D199)","v":false}]
[null,"lubuskie","KM Zielona Góra","Zielona Góra 1",null,null,null,"podkarpackie","KP Stalowa Wola",null,null,null,15,14,null,null,false]
[null,"lubuskie","KM Zielona Góra","Zielona Góra 2",null,null,null,"podkarpackie","KP Strzyżów",null,null,null,15,14,null,null,false]
[null,"lubuskie","KM Zielona Góra","Sulechów",null,null,null,"podkarpackie","KP Ustrzyki Dolne",null,null,null,15,8,null,null,false]
[null,"lubuskie","KP Żagań","Komenda",null,null,null,"podlaskie","KW Białystok",null,null,null,8,7,null,null,false]
[null,"lubuskie","KP Żagań","Żagań",null,null,null,"podlaskie","KP Augustów",null,null,null,8,5,null,null,false]
[null,"lubuskie","KP Żagań","Szprotawa",null,null,null,"podlaskie","KM Białystok",null,null,null,8,9,null,null,false]
[null,"lubuskie","KP Żary","Komenda",null,null,null,"podlaskie","KP Bielsk Podlaski",null,null,null,7,7,null,null,false]
[null,"lubuskie","KP Żary","Żary",null,null,null,"podlaskie","KP Grajewo",null,null,null,7,4,null,null,false]
[null,"lubuskie","KP Żary","Lubsko",null,null,null,"podlaskie","KP Hajnówka",null,null,null,7,6,null,null,false]
[null,"łódzkie","KW PSP Łódź","Komenda",null,null,null,"podlaskie","KP Kolno",null,null,null,11,7,null,null,false]
[null,"łódzkie","KP Bełchatów","Komenda",null,null,null,"podlaskie","KM Łomża",null,null,null,12,7,null,null,true]
[null,"łódzkie","KP Bełchatów","Bełchatów",null,null,null,"podlaskie","KM Mońki",null,null,null,12,9,null,null,false]
[null,"łódzkie","KP Brzeziny","Komenda",null,null,null,"podlaskie","KP Sejny",null,null,null,11,7,null,null,false]
[null,"łódzkie","KP Brzeziny","Brzeziny",null,null,null,"podlaskie","KP Siemiatycze",null,null,null,11,8,null,null,false]
[null,"łódzkie","KP Kutno","Komenda",null,null,null,"podlaskie","KP Sokółka",null,null,null,8,7,null,null,false]
[null,"łódzkie","KP Kutno","Kutno",null,null,null,"podlaskie","KM Suwałki",null,null,null,8,5,null,null,false]
[null,"łódzkie","KP Łask","Komenda",null,null,null,"podlaskie","KP Wysokie Mazowieckie",null,null,null,7,7,null,null,false]
[null,"łódzkie","KP Łask","Łask",null,null,null,"podlaskie","KP Zambrów",null,null,null,7,4,null,null,false]
[null,"łódzkie","KP Łęczyca","Komenda",null,null,null,"pomorskie","KW PSP Gdańsk",null,null,null,10,7,null,null,false]
[null,"łódzkie","KP Łęczyca","Łęczyca",null,null,null,"pomorskie","KP Bytów",null,null,null,10,7,null,null,false]
[null,"łódzkie","KP Łowicz","Komenda",null,null,null,"pomorskie","KP Chojnice",null,null,null,9,7,null,null,false]
[null,"łódzkie","KP Łowicz","Łowicz",null,null,null,"pomorskie","KP Człuchów",null,null,null,9,6,null,null,false]
[null,"łódzkie","KM Łódź","Komenda",null,null,null,"pomorskie","KM Gdańsk",null,null,null,7,7,null,null,false]
[null,"łódzkie","KM Łódź","nr 1",null,null,null,"pomorskie","KM Gdynia",null,null,null,7,4,null,null,false]
[null,"łódzkie","KM Łódź","nr 2",null,null,null,"pomorskie","KP Kartuzy",null,null,null,7,4,null,null,false]
[null,"łódzkie","KM Łódź","nr 3",null,null,null,"pomorskie","KP Kościerzyna",null,null,null,7,4,null,null,false]
[null,"łódzkie","KM Łódź","nr 4",null,null,null,"pomorskie","KP Kwidzyn",null,null,null,7,4,null,null,false]
[null,"łódzkie","KM Łódź","nr 5",null,null,null,"pomorskie","KP Lębork",null,null,null,7,4,null,null,false]
[null,"łódzkie","KM Łódź","nr 6",null,null,null,"pomorskie","KP Malbork",null,null,null,7,4,null,null,false]
[null,"łódzkie","KM Łódź","nr 7",null,null,null,"pomorskie","KP Nowy Dwór Gd.",null,null,null,7,4,null,null,false]
[null,"łódzkie","KM Łódź","nr 8",null,null,null,"pomorskie","KP Pruszcz Gdański",null,null,null,7,4,null,null,false]
[null,"łódzkie","KM Łódź","nr 9",null,null,null,"pomorskie","KP Puck",null,null,null,7,4,null,null,false]
[null,"łódzkie","KM Łódź","nr 10",null,null,null,"pomorskie","KM Słupsk",null,null,null,7,5,null,null,false]
[null,"łódzkie","KM Łódź","nr 11",null,null,null,"pomorskie","KM Sopot",null,null,null,7,5,null,null,false]
[null,"łódzkie","KP Łódź Wschód","Komenda",null,null,null,"pomorskie","KP Starogard Gdański",null,null,null,14,7,null,null,false]
[null,"łódzkie","KP Łódź Wschód","Koluszki",null,null,null,"pomorskie","KP Sztum",null,null,null,14,8,null,null,false]
[null,"łódzkie","KP Opoczno","Komenda",null,null,null,"pomorskie","KP Tczew",null,null,null,10,7,null,null,false]
[null,"łódzkie","KP Opoczno","Opoczno",null,null,null,"pomorskie","KP Wejherowo",null,null,null,10,7,null,null,false]
[null,"łódzkie","KP Pabianice","Komenda",null,null,null,"śląskie","KW PSP Katowice",null,null,null,12,7,null,null,false]
[null,"łódzkie","KP Pabianice","Pabianice",null,null,null,"śląskie","KP Będzin",null,null,null,12,9,null,null,false]
[null,"łódzkie","KP Pajęczno","Komenda",null,null,null,"śląskie","KM Bielsko-Biała",null,null,null,11,7,null,null,false]
[null,"łódzkie","KP Pajęczno","Pajeczno",null,null,null,"śląskie","KM Bytom",null,null,null,11,8,null,null,false]
[null,"łódzkie","KM Piotrków Trybunalski","Komenda",null,null,null,"śląskie","KM Chorzów",null,null,null,23,7,null,null,false]
[null,"łódzkie","KM Piotrków Trybunalski","Piotrków Tryb.",null,null,null,"śląskie","KP Cieszyn",null,null,null,23,14,null,null,false]
[null,"łódzkie","KP Poddębice","Komenda",null,null,null,"śląskie","KM Częstochowa",null,null,null,12,7,null,null,false]
[null,"łódzkie","KP Poddębice","Poddębice",null,null,null,"śląskie","KM Dąbrowa Górnicza",null,null,null,12,9,null,null,false]
[null,"łódzkie","KP Radomsko","Komenda",null,null,null,"śląskie","KM Gliwice",null,null,null,11,7,null,null,false]
[null,"łódzkie","KP Radomsko","Radomsko",null,null,null,"śląskie","KM Jastrzębie Zdrój",null,null,null,11,8,null,null,false]
[null,"łódzkie","KP Rawa Mazowiecka","Komenda",null,null,null,"śląskie","KM Jaworzno",null,null,null,18,7,null,null,false]
[null,"łódzkie","KP Rawa Mazowiecka","Rawa Maz.",null,null,null,"śląskie","KM Katowice",null,null,null,18,9,null,null,false]
[null,"łódzkie","KP PSP Sieradz","Komenda",null,null,null,"śląskie","KP Kłobuck",null,null,null,14,7,null,null,false]
[null,"łódzkie","KP PSP Sieradz","Sieradz",null,null,null,"śląskie","KP Lubliniec",null,null,null,14,7,null,null,false]
[null,"łódzkie","KM PSP Skierniewice","Komenda",null,null,null,"śląskie","KP Mikołów",null,null,null,19,7,null,null,false]
[null,"łódzkie","KM PSP Skierniewice","Skierniewice",null,null,null,"śląskie","KM Mysłowice",null,null,null,19,12,null,null,false]
[null,"łódzkie","KP Tomaszów Maz.","Komenda",null,null,null,"śląskie","KP Myszków",null,null,null,16,7,null,null,false]
[null,"łódzkie","KP Tomaszów Maz.","Tomaszów Maz.",null,null,null,"śląskie","KM Piekary Śląskie",null,null,null,16,13,null,null,false]
[null,"łódzkie","KP Wieluń","Komenda",null,null,null,"śląskie","KP Pszczyna",null,null,null,9,7,null,null,false]
[null,"łódzkie","KP Wieluń","Wieluń",null,null,null,"śląskie","KP Racibórz",null,null,null,9,6,null,null,false]
[null,"łódzkie","KP Wieruszów","Komenda",null,null,null,"śląskie","KM Ruda Śląska",null,null,null,12,7,null,null,false]
[null,"łódzkie","KP Wieruszów","Wieruszów",null,null,null,"śląskie","KM Rybnik",null,null,null,12,9,null,null,false]
[null,"łódzkie","KP PSP Zduńska Wola","Komenda",null,null,null,"śląskie","KM Siemianowice Śląskie",null,null,null,19,7,null,null,false]
[null,"łódzkie","KP PSP Zduńska Wola","Zduńska Wola",null,null,null,"śląskie","KM Sosnowiec",null,null,null,19,12,null,null,false]
[null,"łódzkie","KP PSP Zgierz","Komenda",null,null,null,"śląskie","KM Świętochłowice",null,null,null,{"$f":"LEN(C263)","v":13},{"$f":"LEN(D263)","v":7},null,null,false]
[null,"łódzkie","KP PSP Zgierz","Zgierz",null,null,null,"śląskie","KP Tarnowskie Góry",null,null,null,13,6,null,null,{"$f":"EXACT(D264,D263)","v":false}]
[null,"łódzkie","KP PSP Zgierz","Ozorków",null,null,null,"śląskie","KM Tychy",null,null,null,13,7,null,null,false]
[null,"łódzkie","KP PSP Zgierz","Stryków",null,null,null,"śląskie","KP Wodzisław Śląski",null,null,null,13,7,null,null,false]
[null,"małopolskie","KW PSP Kraków","Komenda",null,null,null,"śląskie","KM Zabrze",null,null,null,13,7,null,null,false]
[null,"małopolskie","KP Bochnia","Komenda",null,null,null,"śląskie","KP Zawiercie",null,null,null,10,7,null,null,true]
[null,"małopolskie","KP Bochnia","Bochnia",null,null,null,"śląskie","KM Żory",null,null,null,10,7,null,null,false]
[null,"małopolskie","KP Brzesko","Komenda",null,null,null,"śląskie","KP Żywiec",null,null,null,10,7,null,null,false]
[null,"małopolskie","KP Brzesko","Brzesko",null,null,null,"świętokrzyskie","KW PSP Kielce",null,null,null,10,7,null,null,false]
[null,"małopolskie","KP Chrzanów","Komenda",null,null,null,"świętokrzyskie","KP PSP Busko-Zdrój",null,null,null,11,7,null,null,false]
[null,"małopolskie","KP Chrzanów","Chrzanów",null,null,null,"świętokrzyskie","KP Jędrzejów",null,null,null,11,8,null,null,false]
[null,"małopolskie","KP Dąbrowa Tarnowska","Komenda",null,null,null,"świętokrzyskie","KP Kazimierza Wielka",null,null,null,20,7,null,null,false]
[null,"małopolskie","KP Dąbrowa Tarnowska","Dąbrowa Tarnowska",null,null,null,"świętokrzyskie","KM PSP Kielce",null,null,null,20,17,null,null,false]
[null,"małopolskie","KP PSP Gorlice","Komenda",null,null,null,"świętokrzyskie","KP Końskie",null,null,null,14,7,null,null,false]
[null,"małopolskie","KP PSP Gorlice","Gorlice",null,null,null,"świętokrzyskie","KP Opatów",null,null,null,14,7,null,null,false]
[null,"małopolskie","KM Kraków","Komenda",null,null,null,"świętokrzyskie","KP Ostrowiec Świętokrzyski",null,null,null,9,7,null,null,false]
[null,"małopolskie","KM Kraków","Nr 1",null,null,null,"świętokrzyskie","KP Pińczów",null,null,null,9,4,null,null,false]
[null,"małopolskie","KM Kraków","Nr 2",null,null,null,"świętokrzyskie","KP Sandomierz",null,null,null,9,4,null,null,false]
[null,"małopolskie","KM Kraków","Nr 3",null,null,null,"świętokrzyskie","KP Skarżysko-Kamienna",null,null,null,9,4,null,null,false]
[null,"małopolskie","KM Kraków","Nr 4",null,null,null,"świętokrzyskie","KP Starachowice",null,null,null,9,4,null,null,false]
[null,"małopolskie","KM Kraków","Nr 5",null,null,null,"świętokrzyskie","KP Staszów",null,null,null,9,4,null,null,false]
[null,"małopolskie","KM Kraków","Nr 6",null,null,null,"świętokrzyskie","KP Włoszczowa",null,null,null,9,4,null,null,false]
[null,"małopolskie","KM Kraków","Nr 7",null,null,null,"warmińsko-mazurskie","KW PSP Olsztyn",null,null,null,9,4,null,null,false]
[null,"małopolskie","KM Kraków","Skawina",null,null,null,"warmińsko-mazurskie","KM PSP Olsztyn",null,null,null,9,7,null,null,false]
[null,"małopolskie","KP Limanowa","Komenda",null,null,null,"warmińsko-mazurskie","KM PSP Elbląg",null,null,null,11,7,null,null,false]
[null,"małopolskie","KP Limanowa","JRG Limanowa",null,null,null,"warmińsko-mazurskie","KP PSP Bartoszyce",null,null,null,11,12,null,null,false]
[null,"małopolskie","KP Miechów","Komenda",null,null,null,"warmińsko-mazurskie","KP PSP Braniewo",null,null,null,10,7,null,null,false]
[null,"małopolskie","KP Miechów","JRG Miechów",null,null,null,"warmińsko-mazurskie","KP PSP Działdowo",null,null,null,10,11,null,null,false]
[null,"małopolskie","KP Myślenice ","Komenda",null,null,null,"warmińsko-mazurskie","KP PSP Ełk",null,null,null,13,7,null,null,false]
[null,"małopolskie","KP Myślenice ","JRG Myślenice",null,null,null,"warmińsko-mazurskie","KP PSP Giżycko",null,null,null,13,13,null,null,false]
[null,"małopolskie","KM PSP Nowy Sącz","Komenda",null,null,null,"warmińsko-mazurskie","KP PSP Gołdap",null,null,null,16,7,null,null,false]
[null,"małopolskie","KM PSP Nowy Sącz","JRG Nr 1",null,null,null,"warmińsko-mazurskie","KP PSP Iława",null,null,null,16,8,null,null,false]
[null,"małopolskie","KM PSP Nowy Sącz","JRG Nr 2",null,null,null,"warmińsko-mazurskie","KP PSP Kętrzyn",null,null,null,16,8,null,null,false]
[null,"małopolskie","KM PSP Nowy Sącz","JRG Krynica Zdrój",null,null,null,"warmińsko-mazurskie","KP PSP Lidzbark Warmiński",null,null,null,16,17,null,null,false]
[null,"małopolskie","KP Nowy Targ","Komenda",null,null,null,"warmińsko-mazurskie","KP PSP Mrągowo",null,null,null,12,7,null,null,false]
[null,"małopolskie","KP Nowy Targ","JRG Nowy Targ",null,null,null,"warmińsko-mazurskie","KP PSP Nidzica",null,null,null,12,13,null,null,false]
[null,"małopolskie","KP Nowy Targ","JRG Rabka Zdrój",null,null,null,"warmińsko-mazurskie","KP Nowe Miasto Lubawskie",null,null,null,12,15,null,null,false]
[null,"małopolskie","KP Olkusz","Komenda",null,null,null,"warmińsko-mazurskie","KP PSP Olecko",null,null,null,9,7,null,null,false]
[null,"małopolskie","KP Olkusz","JRG Olkusz",null,null,null,"warmińsko-mazurskie","KP PSP Ostróda",null,null,null,9,10,null,null,false]
[null,"małopolskie","KP Olkusz","JRG Wolbrom",null,null,null,"warmińsko-mazurskie","KP PSP Pisz",null,null,null,9,11,null,null,false]
[null,"małopolskie","KP Oświęcim","Komenda",null,null,null,"warmińsko-mazurskie","KP PSP Szczytno",null,null,null,11,7,null,null,false]
[null,"małopolskie","KP Oświęcim","JRG Oświęcim",null,null,null,"warmińsko-mazurskie","KP PSP Węgorzewo",null,null,null,11,12,null,null,false]
[null,"małopolskie","KP Proszowice","Komenda",null,null,null,"wielkopolskie","KW PSP Poznań",null,null,null,13,7,null,null,false]
[null,"małopolskie","KP Proszowice","JRG Proszowice",null,null,null,"wielkopolskie","KP PSP Chodzież",null,null,null,13,14,null,null,false]
[null,"małopolskie","KP Sucha Beskidzka","Komenda",null,null,null,"wielkopolskie","KP PSP Czarnków",null,null,null,18,7,null,null,false]
[null,"małopolskie","KP Sucha Beskidzka","JRG Sucha Beskidzka",null,null,null,"wielkopolskie","KP PSP Gniezno",null,null,null,18,19,null,null,false]
[null,"małopolskie","KM Tarnów","Komenda",null,null,null,"wielkopolskie","KP PSP Gostyń",null,null,null,9,7,null,null,false]
[null,"małopolskie","KM Tarnów","Nr 1 ",null,null,null,"wielkopolskie","KP PSP Grodzisk Wlkp.",null,null,null,9,5,null,null,false]
[null,"małopolskie","KM Tarnów","Nr 2",null,null,null,"wielkopolskie","KP PSP Jarocin",null,null,null,9,4,null,null,false]
[null,"małopolskie","KP PSP Wadowice","Komenda",null,null,null,"wielkopolskie","KM PSP Kalisz",null,null,null,15,7,null,null,false]
[null,"małopolskie","KP PSP Wadowice","Wadowice",null,null,null,"wielkopolskie","KP PSP Kępno",null,null,null,15,8,null,null,false]
[null,"małopolskie","KP PSP Wadowice","Andrychów",null,null,null,"wielkopolskie","KP PSP Koło",null,null,null,15,9,null,null,false]
[null,"małopolskie","KP Wieliczka","Komenda",null,null,null,"wielkopolskie","KM PSP Konin",null,null,null,12,7,null,null,false]
[null,"małopolskie","KP Wieliczka","Wieliczka",null,null,null,"wielkopolskie","KP PSP Kościan",null,null,null,12,9,null,null,false]
[null,"małopolskie","KP Zakopane","Komenda",null,null,null,"wielkopolskie","KP PSP Krotoszyn",null,null,null,11,7,null,null,false]
[null,"małopolskie","KP Zakopane","Zakopane",null,null,null,"wielkopolskie","KM PSP Leszno",null,null,null,11,8,null,null,false]
[null,"mazowieckie","KW PSP Warszawa","Komenda",null,null,null,"wielkopolskie","KP PSP Międzychód",null,null,null,15,7,null,null,false]
[null,"mazowieckie","KP Białobrzegi","Komenda",null,null,null,"wielkopolskie","KP PSP Nowy Tomyśl",null,null,null,14,7,null,null,true]
[null,"mazowieckie","KP Białobrzegi","nr 1Białobrzegi",null,null,null,"wielkopolskie","KP PSP Oborniki",null,null,null,14,15,null,null,false]
[null,"mazowieckie","KP Ciechanów","Komenda",null,null,null,"wielkopolskie","KP PSP Ostrów Wlkp.",null,null,null,12,7,null,null,false]
[null,"mazowieckie","KP Ciechanów","nr 1 Ciechanów",null,null,null,"wielkopolskie","KP PSP Ostrzeszów",null,null,null,12,14,null,null,false]
[null,"mazowieckie","KP Garwolin","Komenda",null,null,null,"wielkopolskie","KP PSP Piła",null,null,null,11,7,null,null,false]
[null,"mazowieckie","KP Garwolin","nr 1Garwolin",null,null,null,"wielkopolskie","KP PSP Pleszew",null,null,null,11,12,null,null,false]
[null,"mazowieckie","KP Gostynin","Komenda",null,null,null,"wielkopolskie","KM PSP Poznań",null,null,null,11,7,null,null,false]
[null,"mazowieckie","KP Gostynin","nr 1 Gostynin",null,null,null,"wielkopolskie","KP PSP Rawicz",null,null,null,{"$f":"LEN(C327)","v":11},{"$f":"LEN(D327)","v":13},null,null,false]
[null,"mazowieckie","KP Grodzisk Maz.","Komenda",null,null,null,"wielkopolskie","KP PSP Słupca",null,null,null,16,7,null,null,{"$f":"EXACT(D328,D327)","v":false}]
[null,"mazowieckie","KP Grodzisk Maz.","nr 1 Grodzisk Maz.",null,null,null,"wielkopolskie","KP PSP Szamotuły",null,null,null,16,18,null,null,false]
[null,"mazowieckie","KP Grójec","Komenda",null,null,null,"wielkopolskie","KP PSP Śrem",null,null,null,9,7,null,null,false]
[null,"mazowieckie","KP Grójec","nr 1 Grójec",null,null,null,"wielkopolskie","KP PSP Środa Wlkp.",null,null,null,9,11,null,null,false]
[null,"mazowieckie","KP Kozienice","Komenda",null,null,null,"wielkopolskie","KP PSP Turek",null,null,null,12,7,null,null,false]
[null,"mazowieckie","KP Kozienice","nr 1 Kozienice",null,null,null,"wielkopolskie","KP PSP Wągrowiec ",null,null,null,12,14,null,null,false]
[null,"mazowieckie","KP Legionowo","Komenda",null,null,null,"wielkopolskie","KP PSP Wolsztyn",null,null,null,12,7,null,null,false]
[null,"mazowieckie","KP Legionowo","nr 1 Legionowo",null,null,null,"wielkopolskie","KP PSP Września",null,null,null,12,14,null,null,false]
[null,"mazowieckie","KP Lipsko","Komenda",null,null,null,"wielkopolskie","KP PSP Złotów",null,null,null,9,7,null,null,false]
[null,"mazowieckie","KP Lipsko","nr 1 Lipsko",null,null,null,"zachodniopomorskie","KW PSP Szczecin",null,null,null,9,11,null,null,false]
[null,"mazowieckie","KP Łosice","Komenda",null,null,null,"zachodniopomorskie","KP Białogard",null,null,null,9,7,null,null,false]
[null,"mazowieckie","KP Łosice","nr 1 Łosice",null,null,null,"zachodniopomorskie","KP Choszczno",null,null,null,9,11,null,null,false]
[null,"mazowieckie","KP Maków Maz.","Komenda",null,null,null,"zachodniopomorskie","KP Drawsko Pomorskie",null,null,null,13,7,null,null,false]
[null,"mazowieckie","KP Maków Maz.","nr 1Maków Maz.",null,null,null,"zachodniopomorskie","KP Goleniów",null,null,null,13,14,null,null,false]
[null,"mazowieckie","KP Mińsk Maz.","Komenda",null,null,null,"zachodniopomorskie","KP Gryfice",null,null,null,13,7,null,null,false]
[null,"mazowieckie","KP Mińsk Maz.","nr 1 Mińsk Maz",null,null,null,"zachodniopomorskie","KP Gryfino",null,null,null,13,14,null,null,false]
[null,"mazowieckie","KP Mława","Komenda",null,null,null,"zachodniopomorskie","KP Kamień Pomorski",null,null,null,8,7,null,null,false]
[null,"mazowieckie","KP Mława","nr 1 Mława",null,null,null,"zachodniopomorskie","KP Kołobrzeg",null,null,null,8,10,null,null,false]
[null,"mazowieckie","KP Nowy Dwór Maz.","Komenda",null,null,null,"zachodniopomorskie","KM Koszalin",null,null,null,17,7,null,null,false]
[null,"mazowieckie","KP Nowy Dwór Maz.","nr 1 Nowy Dwór M",null,null,null,"zachodniopomorskie","KP Łobez",null,null,null,17,16,null,null,false]
[null,"mazowieckie","KM Ostrołęka","Komenda",null,null,null,"zachodniopomorskie","KP Myślibórz",null,null,null,12,7,null,null,false]
[null,"mazowieckie","KM Ostrołęka","nr 1 Ostrołęka",null,null,null,"zachodniopomorskie","KP Police",null,null,null,12,14,null,null,false]
[null,"mazowieckie","KP Ostrów Maz.","Komenda",null,null,null,"zachodniopomorskie","KP Pyrzyce",null,null,null,14,7,null,null,false]
[null,"mazowieckie","KP Ostrów Maz.","nr 1 Ostrów Maz",null,null,null,"zachodniopomorskie","KP Sławno",null,null,null,14,15,null,null,false]
[null,"mazowieckie","KP Otwock","Komenda",null,null,null,"zachodniopomorskie","KP Stargard Szcz.",null,null,null,9,7,null,null,false]
[null,"mazowieckie","KP Otwock","nr 1 Otwock",null,null,null,"zachodniopomorskie","KM Szczecin",null,null,null,9,11,null,null,false]
[null,"mazowieckie","KP Piaseczno","Komenda",null,null,null,"zachodniopomorskie","KP Szczecinek",null,null,null,12,7,null,null,false]
[null,"mazowieckie","KP Piaseczno","nr 1 Piaseczno",null,null,null,"zachodniopomorskie","KP Świdwin",null,null,null,12,14,null,null,false]
[null,"mazowieckie","KM Płock","Komenda",null,null,null,"zachodniopomorskie","KM Świnoujście",null,null,null,8,7,null,null,false]
[null,"mazowieckie","KM Płock","nr 1 Płock",null,null,null,"zachodniopomorskie","KP Wałcz",null,null,null,8,10,null,null,false]
[null,"mazowieckie","KM Płock","nr 2 Płock",null,null,null,"zz jednostka centralna","KG PSP Warszawa",null,null,null,8,10,null,null,false]
[null,"mazowieckie","KM Płock","nr 3 Płock",null,null,null,"zz jednostka centralna","CMP Mysłowice",null,null,null,8,10,null,null,false]
[null,"mazowieckie","KP Płońsk","Komenda",null,null,null,"zz jednostka centralna","SGSP Warszawa",null,null,null,9,7,null,null,false]
[null,"mazowieckie","KP Płońsk","nr 1 Płońsk",null,null,null,"zz jednostka centralna","SA PSP Kraków",null,null,null,9,11,null,null,false]
[null,"mazowieckie","KP Pruszków","Komenda",null,null,null,"zz jednostka centralna","SA PSP Poznań",null,null,null,11,7,null,null,false]
[null,"mazowieckie","KP Pruszków","nr 1 Pruszków",null,null,null,"zz jednostka centralna","SP PSP Bydgoszcz",null,null,null,11,13,null,null,false]
[null,"mazowieckie","KP Przasnysz","Komenda",null,null,null,"zz jednostka centralna","CS PSP Częstochowa",null,null,null,12,7,null,null,false]
[null,"mazowieckie","KP Przasnysz","nr 1 Przasnysz",null,null,null,null,null,null,null,null,12,14,null,null,false]
[null,"mazowieckie","KP Przysucha","Komenda",null,null,null,null,null,null,null,null,12,7,null,null,false]
[null,"mazowieckie","KP Przysucha","nr 1 Przyszucha",null,null,null,null,null,null,null,null,12,15,null,null,false]
[null,"mazowieckie","KP Pułtusk","Komenda",null,null,null,null,null,null,null,null,10,7,null,null,false]
[null,"mazowieckie","KP Pułtusk","nr 1 Pułtusk",null,null,null,null,null,null,null,null,10,12,null,null,false]
[null,"mazowieckie","KM Radom","Komenda",null,null,null,null,null,null,null,null,8,7,null,null,false]
[null,"mazowieckie","KM Radom","nr 1 Radom",null,null,null,null,null,null,null,null,8,10,null,null,false]
[null,"mazowieckie","KM Radom","nr 2 Radom",null,null,null,null,null,null,null,null,8,10,null,null,false]
[null,"mazowieckie","KM Radom","nr 3 Radom",null,null,null,null,null,null,null,null,8,10,null,null,false]
[null,"mazowieckie","KM Radom","nr 4 Radom",null,null,null,null,null,null,null,null,8,10,null,null,false]
[null,"mazowieckie","KM Siedlce","Komenda",null,null,null,null,null,null,null,null,10,7,null,null,false]
[null,"mazowieckie","KM Siedlce","nr 1 Siedlce",null,null,null,null,null,null,null,null,10,12,null,null,false]
[null,"mazowieckie","KM Siedlce","nr 2 Siedlce",null,null,null,null,null,null,null,null,10,12,null,null,false]
[null,"mazowieckie","KP Sierpc","Komenda",null,null,null,null,null,null,null,null,9,7,null,null,false]
[null,"mazowieckie","KP Sierpc","nr 1 Sierpc",null,null,null,null,null,null,null,null,9,11,null,null,false]
[null,"mazowieckie","KP Sochaczew","Komenda",null,null,null,null,null,null,null,null,12,7,null,null,false]
[null,"mazowieckie","KP Sochaczew","nr 1 Sochaczew",null,null,null,null,null,null,null,null,12,14,null,null,false]
[null,"mazowieckie","KP Sokołów Podl.","Komenda",null,null,null,null,null,null,null,null,16,7,null,null,false]
[null,"mazowieckie","KP Sokołów Podl.","nr 1 Sokołów Podl",null,null,null,null,null,null,null,null,16,17,null,null,false]
[null,"mazowieckie","KP Szydłowiec","Komenda",null,null,null,null,null,null,null,null,13,7,null,null,false]
[null,"mazowieckie","KP Szydłowiec","nr 1 Szydłowiec",null,null,null,null,null,null,null,null,13,15,null,null,false]
[null,"mazowieckie","KP pow. warszawskiego zachodniego","Komenda",null,null,null,null,null,null,null,null,33,7,null,null,false]
[null,"mazowieckie","KP pow. warszawskiego zachodniego","nr 1 w-wa zach",null,null,null,null,null,null,null,null,33,14,null,null,false]
[null,"mazowieckie","KP Węgrów","Komenda",null,null,null,null,null,null,null,null,9,7,null,null,false]
[null,"mazowieckie","KP Węgrów","nr 1 Węgrów",null,null,null,null,null,null,null,null,9,11,null,null,false]
[null,"mazowieckie","KP Wołomin","Komenda",null,null,null,null,null,null,null,null,10,7,null,null,false]
[null,"mazowieckie","KP Wołomin","nr 1 Wołomin",null,null,null,null,null,null,null,null,{"$f":"LEN(C391)","v":10},{"$f":"LEN(D391)","v":12},null,null,false]
[null,"mazowieckie","KP Wyszków","Komenda",null,null,null,null,null,null,null,null,10,7,null,null,{"$f":"EXACT(D392,D391)","v":false}]
[null,"mazowieckie","KP Wyszków","nr 1 Wyszków",null,null,null,null,null,null,null,null,10,12,null,null,false]
[null,"mazowieckie","KP Zwoleń","Komenda",null,null,null,null,null,null,null,null,9,7,null,null,false]
[null,"mazowieckie","KP Zwoleń","nr 1 Zwoleń",null,null,null,null,null,null,null,null,9,11,null,null,false]
[null,"mazowieckie","KP Żuromin","Komenda",null,null,null,null,null,null,null,null,10,7,null,null,false]
[null,"mazowieckie","KP Żuromin","nr 1 Żuromin",null,null,null,null,null,null,null,null,10,12,null,null,false]
[null,"mazowieckie","KP Żyrardów","Komenda",null,null,null,null,null,null,null,null,11,7,null,null,false]
[null,"mazowieckie","KP Żyrardów","nr 1 Żyrardów",null,null,null,null,null,null,null,null,11,13,null,null,false]
[null,"mazowieckie","KM m. st. Warszawy ","Komenda",null,null,null,null,null,null,null,null,19,7,null,null,false]
[null,"mazowieckie","KM m. st. Warszawy ","Warszawa Nr 1",null,null,null,null,null,null,null,null,19,13,null,null,false]
[null,"mazowieckie","KM m. st. Warszawy ","Warszawa Nr 2",null,null,null,null,null,null,null,null,19,13,null,null,false]
[null,"mazowieckie","KM m. st. Warszawy ","Warszawa Nr 3",null,null,null,null,null,null,null,null,19,13,null,null,false]
[null,"mazowieckie","KM m. st. Warszawy ","Warszawa Nr 4",null,null,null,null,null,null,null,null,19,13,null,null,false]
[null,"mazowieckie","KM m. st. Warszawy ","Warszawa Nr 5",null,null,null,null,null,null,null,null,19,13,null,null,false]
[null,"mazowieckie","KM m. st. Warszawy ","Warszawa Nr 6",null,null,null,null,null,null,null,null,19,13,null,null,false]
[null,"mazowieckie","KM m. st. Warszawy ","Warszawa Nr 7",null,null,null,null,null,null,null,null,19,13,null,null,false]
[null,"mazowieckie","KM m. st. Warszawy ","Warszawa Nr 8",null,null,null,null,null,null,null,null,19,13,null,null,false]
[null,"mazowieckie","KM m. st. Warszawy ","Warszawa Nr 9",null,null,null,null,null,null,null,null,19,13,null,null,false]
[null,"mazowieckie","KM m. st. Warszawy ","Warszawa Nr 10",null,null,null,null,null,null,null,null,19,14,null,null,false]
[null,"mazowieckie","KM m. st. Warszawy ","Warszawa Nr 11",null,null,null,null,null,null,null,null,19,14,null,null,false]
[null,"mazowieckie","KM m. st. Warszawy ","Warszawa Nr 12",null,null,null,null,null,null,null,null,19,14,null,null,false]
[null,"mazowieckie","KM m. st. Warszawy ","Warszawa Nr 13",null,null,null,null,null,null,null,null,19,14,null,null,false]
[null,"mazowieckie","KM m. st. Warszawy ","Warszawa Nr 14",null,null,null,null,null,null,null,null,19,14,null,null,false]
[null,"mazowieckie","KM m. st. Warszawy ","Warszawa Nr 15",null,null,null,null,null,null,null,null,19,14,null,null,false]
[null,"mazowieckie","KM m. st. Warszawy ","Warszawa Nr 16",null,null,null,null,null,null,null,null,19,14,null,null,false]
[null,"mazowieckie","KM m. st. Warszawy ","Warszawa Nr 17",null,null,null,null,null,null,null,null,19,14,null,null,false]
[null,"opolskie","KW PSP Opole","Komenda",null,null,null,null,null,null,null,null,12,7,null,null,false]
[null,"opolskie","KP PSP Brzeg","Komenda",null,null,null,null,null,null,null,null,12,7,null,null,true]
[null,"opolskie","KP PSP Brzeg","Brzeg",null,null,null,null,null,null,null,null,12,5,null,null,false]
[null,"opolskie","KP PSP Brzeg","Grodków",null,null,null,null,null,null,null,null,12,7,null,null,false]
[null,"opolskie","KP PSP Głubczyce","Komenda",null,null,null,null,null,null,null,null,16,7,null,null,false]
[null,"opolskie","KP PSP Głubczyce","Głubczycach ",null,null,null,null,null,null,null,null,16,12,null,null,false]
[null,"opolskie","KP PSP Kędzierzyn-Koźle","Komenda",null,null,null,null,null,null,null,null,23,7,null,null,false]
[null,"opolskie","KP PSP Kędzierzyn-Koźle","JRG Nr 1 K-Koźle",null,null,null,null,null,null,null,null,23,16,null,null,false]
[null,"opolskie","KP PSP Kędzierzyn-Koźle","JRG Nr 2 K-Koźle",null,null,null,null,null,null,null,null,23,16,null,null,false]
[null,"opolskie","KP PSP Kluczbork","Komenda",null,null,null,null,null,null,null,null,16,7,null,null,false]
[null,"opolskie","KP PSP Kluczbork","Kluczbork",null,null,null,null,null,null,null,null,16,9,null,null,false]
[null,"opolskie","KP PSP Krapkowice","Komenda",null,null,null,null,null,null,null,null,17,7,null,null,false]
[null,"opolskie","KP PSP Krapkowice","Krapkowicach",null,null,null,null,null,null,null,null,17,12,null,null,false]
[null,"opolskie","KP PSP Namysłów","Komenda",null,null,null,null,null,null,null,null,15,7,null,null,false]
[null,"opolskie","KP PSP Namysłów","Namysłów",null,null,null,null,null,null,null,null,15,8,null,null,false]
[null,"opolskie","KP PSP Nysa","Komenda",null,null,null,null,null,null,null,null,11,7,null,null,false]
[null,"opolskie","KP PSP Nysa","Nysa",null,null,null,null,null,null,null,null,11,4,null,null,false]
[null,"opolskie","KP PSP Nysa","Głuchołazy",null,null,null,null,null,null,null,null,11,10,null,null,false]
[null,"opolskie","KP PSP Nysa","Paczków",null,null,null,null,null,null,null,null,11,7,null,null,false]
[null,"opolskie","KP PSP Olesno","Komenda",null,null,null,null,null,null,null,null,13,7,null,null,false]
[null,"opolskie","KP PSP Olesno","Oleśnie",null,null,null,null,null,null,null,null,13,7,null,null,false]
[null,"opolskie","KM PSP Opole","Komenda",null,null,null,null,null,null,null,null,12,7,null,null,false]
[null,"opolskie","KM PSP Opole","JRG NR 1 Opole",null,null,null,null,null,null,null,null,12,14,null,null,false]
[null,"opolskie","KM PSP Opole","JRG NR 2 Opole",null,null,null,null,null,null,null,null,12,14,null,null,false]
[null,"opolskie","KM PSP Opole","JRG Nr 3 Niemodlin",null,null,null,null,null,null,null,null,12,18,null,null,false]
[null,"opolskie","KP PSP Prudnik","Komenda",null,null,null,null,null,null,null,null,14,7,null,null,false]
[null,"opolskie","KP PSP Prudnik","Prudnik",null,null,null,null,null,null,null,null,14,7,null,null,false]
[null,"opolskie","KP PSP Strzelce Opolskie","Komenda",null,null,null,null,null,null,null,null,24,7,null,null,false]
[null,"opolskie","KP PSP Strzelce Opolskie","Strzelce Opolskie",null,null,null,null,null,null,null,null,24,17,null,null,false]
[null,"podkarpackie","KW PSP Rzeszów","Komenda",null,null,null,null,null,null,null,null,14,7,null,null,false]
[null,"podkarpackie","KM Krosno","Komenda",null,null,null,null,null,null,null,null,9,7,null,null,true]
[null,"podkarpackie","KM Krosno","JRG w Krośnie",null,null,null,null,null,null,null,null,9,13,null,null,false]
[null,"podkarpackie","KM Przemyśl","Komenda",null,null,null,null,null,null,null,null,11,7,null,null,false]
[null,"podkarpackie","KM Przemyśl","JRG w Przemyślu",null,null,null,null,null,null,null,null,11,15,null,null,false]
[null,"podkarpackie","KM Rzeszów","Komenda",null,null,null,null,null,null,null,null,10,7,null,null,false]
[null,"podkarpackie","KM Rzeszów","JRG w Rzeszowie nr 1",null,null,null,null,null,null,null,null,10,20,null,null,false]
[null,"podkarpackie","KM Rzeszów","JRG w Rzeszowie nr 2",null,null,null,null,null,null,null,null,10,20,null,null,false]
[null,"podkarpackie","KM Tarnobrzeg","Komenda",null,null,null,null,null,null,null,null,{"$f":"LEN(C455)","v":13},{"$f":"LEN(D455)","v":7},null,null,false]
[null,"podkarpackie","KM Tarnobrzeg","JRG w Tarnobrzegu",null,null,null,null,null,null,null,null,13,17,null,null,{"$f":"EXACT(D456,D455)","v":false}]
[null,"podkarpackie","KM Tarnobrzeg","JRG w Nowej Dębie ",null,null,null,null,null,null,null,null,13,18,null,null,false]
[null,"podkarpackie","KP Brzozów","Komenda",null,null,null,null,null,null,null,null,10,7,null,null,false]
[null,"podkarpackie","KP Brzozów","JRG w Brzozowie",null,null,null,null,null,null,null,null,10,15,null,null,false]
[null,"podkarpackie","KP Dębica","Komenda",null,null,null,null,null,null,null,null,9,7,null,null,false]
[null,"podkarpackie","KP Dębica","JRG w Dębicy nr 1",null,null,null,null,null,null,null,null,9,17,null,null,false]
[null,"podkarpackie","KP Dębica","JRG w Dębicy nr 2",null,null,null,null,null,null,null,null,9,17,null,null,false]
[null,"podkarpackie","KP Jarosław","Komenda",null,null,null,null,null,null,null,null,11,7,null,null,false]
[null,"podkarpackie","KP Jarosław","JRG w Jarosławiu",null,null,null,null,null,null,null,null,11,16,null,null,false]
[null,"podkarpackie","KP Jasło","Komenda",null,null,null,null,null,null,null,null,8,7,null,null,false]
[null,"podkarpackie","KP Jasło","JRG w Jaśle",null,null,null,null,null,null,null,null,8,11,null,null,false]
[null,"podkarpackie","KP Kolbuszowa","Komenda",null,null,null,null,null,null,null,null,13,7,null,null,false]
[null,"podkarpackie","KP Kolbuszowa","JRG w Kolbuszowej",null,null,null,null,null,null,null,null,13,17,null,null,false]
[null,"podkarpackie","KP Lesko","Komenda",null,null,null,null,null,null,null,null,8,7,null,null,false]
[null,"podkarpackie","KP Lesko","JRG w Lesku",null,null,null,null,null,null,null,null,8,11,null,null,false]
[null,"podkarpackie","KP Leżajsk","Komenda",null,null,null,null,null,null,null,null,10,7,null,null,false]
[null,"podkarpackie","KP Leżajsk","JRG w Leżajsku",null,null,null,null,null,null,null,null,10,14,null,null,false]
[null,"podkarpackie","KP Leżajsk","JRG w Nowej Sarzynie",null,null,null,null,null,null,null,null,10,20,null,null,false]
[null,"podkarpackie","KP Lubaczów","Komenda",null,null,null,null,null,null,null,null,11,7,null,null,false]
[null,"podkarpackie","KP Lubaczów","JRG w Lubaczowie",null,null,null,null,null,null,null,null,11,16,null,null,false]
[null,"podkarpackie","KP Łańcut","Komenda",null,null,null,null,null,null,null,null,9,7,null,null,false]
[null,"podkarpackie","KP Łańcut","JRG w Łańcucie",null,null,null,null,null,null,null,null,9,14,null,null,false]
[null,"podkarpackie","KP Mielec","Komenda",null,null,null,null,null,null,null,null,9,7,null,null,false]
[null,"podkarpackie","KP Mielec","JRG w Mielcu nr 1",null,null,null,null,null,null,null,null,9,17,null,null,false]
[null,"podkarpackie","KP Mielec","JRG w Mielcu nr 2",null,null,null,null,null,null,null,null,9,17,null,null,false]
[null,"podkarpackie","KP Nisko","Komenda",null,null,null,null,null,null,null,null,8,7,null,null,false]
[null,"podkarpackie","KP Nisko","JRG w Nisku",null,null,null,null,null,null,null,null,8,11,null,null,false]
[null,"podkarpackie","KP Przeworsk","Komenda",null,null,null,null,null,null,null,null,12,7,null,null,false]
[null,"podkarpackie","KP Przeworsk","JRG w Przeworsku",null,null,null,null,null,null,null,null,12,16,null,null,false]
[null,"podkarpackie","KP Ropczyce","Komenda",null,null,null,null,null,null,null,null,11,7,null,null,false]
[null,"podkarpackie","KP Ropczyce","JRG w Ropczycach",null,null,null,null,null,null,null,null,11,16,null,null,false]
[null,"podkarpackie","KP Sanok","Komenda",null,null,null,null,null,null,null,null,8,7,null,null,false]
[null,"podkarpackie","KP Sanok","JRG w Sanoku",null,null,null,null,null,null,null,null,8,12,null,null,false]
[null,"podkarpackie","KP Stalowa Wola","Komenda",null,null,null,null,null,null,null,null,15,7,null,null,false]
[null,"podkarpackie","KP Stalowa Wola","JRG w Stalowej Woli nr 1",null,null,null,null,null,null,null,null,15,24,null,null,false]
[null,"podkarpackie","KP Stalowa Wola","JRG w Stalowej Woli nr 2",null,null,null,null,null,null,null,null,15,24,null,null,false]
[null,"podkarpackie","KP Strzyżów","Komenda",null,null,null,null,null,null,null,null,11,7,null,null,false]
[null,"podkarpackie","KP Strzyżów","JRG w Strzyżowie",null,null,null,null,null,null,null,null,11,16,null,null,false]
[null,"podkarpackie","KP Ustrzyki Dolne","Komenda",null,null,null,null,null,null,null,null,17,7,null,null,false]
[null,"podkarpackie","KP Ustrzyki Dolne","JRG w Ustrzykach Dolnych",null,null,null,null,null,null,null,null,17,24,null,null,false]
[null,"podlaskie","KW Białystok","Komenda",null,null,null,null,null,null,null,null,12,7,null,null,false]
[null,"podlaskie","KP Augustów","Komenda",null,null,null,null,null,null,null,null,11,7,null,null,true]
[null,"podlaskie","KP Augustów","JRG Augustowie",null,null,null,null,null,null,null,null,11,14,null,null,false]
[null,"podlaskie","KM Białystok","Komenda",null,null,null,null,null,null,null,null,12,7,null,null,false]
[null,"podlaskie","KM Białystok","JRG 1",null,null,null,null,null,null,null,null,12,5,null,null,false]
[null,"podlaskie","KM Białystok","JRG 2",null,null,null,null,null,null,null,null,12,5,null,null,false]
[null,"podlaskie","KM Białystok","JRG 3",null,null,null,null,null,null,null,null,12,5,null,null,false]
[null,"podlaskie","KM Białystok","JRG 4",null,null,null,null,null,null,null,null,12,5,null,null,false]
[null,"podlaskie","KM Białystok","JRG 5",null,null,null,null,null,null,null,null,12,5,null,null,false]
[null,"podlaskie","KP Bielsk Podlaski","Komenda",null,null,null,null,null,null,null,null,18,7,null,null,false]
[null,"podlaskie","KP Bielsk Podlaski","JRG Bielsku Podlaskim",null,null,null,null,null,null,null,null,18,21,null,null,false]
[null,"podlaskie","KP Grajewo","Komenda",null,null,null,null,null,null,null,null,10,7,null,null,false]
[null,"podlaskie","KP Grajewo","JRG Grajewie",null,null,null,null,null,null,null,null,10,12,null,null,false]
[null,"podlaskie","KP Hajnówka","Komenda",null,null,null,null,null,null,null,null,11,7,null,null,false]
[null,"podlaskie","KP Hajnówka","JRG Hajnówce",null,null,null,null,null,null,null,null,11,12,null,null,false]
[null,"podlaskie","KP Kolno","Komenda",null,null,null,null,null,null,null,null,8,7,null,null,false]
[null,"podlaskie","KP Kolno","JRG Kolnie",null,null,null,null,null,null,null,null,8,10,null,null,false]
[null,"podlaskie","KM Łomża","Komenda",null,null,null,null,null,null,null,null,8,7,null,null,false]
[null,"podlaskie","KM Łomża","JRG Łomży",null,null,null,null,null,null,null,null,8,9,null,null,false]
[null,"podlaskie","KM Mońki","Komenda",null,null,null,null,null,null,null,null,8,7,null,null,false]
[null,"podlaskie","KM Mońki","JRG Mońkach",null,null,null,null,null,null,null,null,8,11,null,null,false]
[null,"podlaskie","KP Sejny","Komenda",null,null,null,null,null,null,null,null,8,7,null,null,false]
[null,"podlaskie","KP Sejny","JRG Sejnach",null,null,null,null,null,null,null,null,8,11,null,null,false]
[null,"podlaskie","KP Siemiatycze","Komenda",null,null,null,null,null,null,null,null,{"$f":"LEN(C519)","v":14},{"$f":"LEN(D519)","v":7},null,null,false]
[null,"podlaskie","KP Siemiatycze","JRG Siemiatyczach",null,null,null,null,null,null,null,null,14,17,null,null,{"$f":"EXACT(D520,D519)","v":false}]
[null,"podlaskie","KP Sokółka","Komenda",null,null,null,null,null,null,null,null,10,7,null,null,false]
[null,"podlaskie","KP Sokółka","JRG Sokółce",null,null,null,null,null,null,null,null,10,11,null,null,false]
[null,"podlaskie","KM Suwałki","Komenda",null,null,null,null,null,null,null,null,10,7,null,null,false]
[null,"podlaskie","KM Suwałki","JRG Suwałkach",null,null,null,null,null,null,null,null,10,13,null,null,false]
[null,"podlaskie","KP Wysokie Mazowieckie","Komenda",null,null,null,null,null,null,null,null,22,7,null,null,false]
[null,"podlaskie","KP Wysokie Mazowieckie","JRG Wysokiem Mazowieckiem",null,null,null,null,null,null,null,null,22,25,null,null,false]
[null,"podlaskie","KP Zambrów","Komenda",null,null,null,null,null,null,null,null,10,7,null,null,false]
[null,"podlaskie","KP Zambrów","JRG Zambrowie",null,null,null,null,null,null,null,null,10,13,null,null,false]
[null,"pomorskie","KW PSP Gdańsk","Komenda",null,null,null,null,null,null,null,null,13,7,null,null,false]
[null,"pomorskie","KP Bytów","Komenda",null,null,null,null,null,null,null,null,8,7,null,null,true]
[null,"pomorskie","KP Bytów","JRG nr 1",null,null,null,null,null,null,null,null,8,8,null,null,false]
[null,"pomorskie","KP Bytów","JRG nr 2 Miastko",null,null,null,null,null,null,null,null,8,16,null,null,false]
[null,"pomorskie","KP Chojnice","Komenda",null,null,null,null,null,null,null,null,11,7,null,null,false]
[null,"pomorskie","KP Chojnice","JRG Chojnice",null,null,null,null,null,null,null,null,11,12,null,null,false]
[null,"pomorskie","KP Człuchów","Komenda",null,null,null,null,null,null,null,null,11,7,null,null,false]
[null,"pomorskie","KP Człuchów","JRG Człuchów",null,null,null,null,null,null,null,null,11,12,null,null,false]
[null,"pomorskie","KM Gdańsk","Komenda",null,null,null,null,null,null,null,null,9,7,null,null,false]
[null,"pomorskie","KM Gdańsk","JRG nr 1",null,null,null,null,null,null,null,null,9,8,null,null,false]
[null,"pomorskie","KM Gdańsk","JRG nr 2",null,null,null,null,null,null,null,null,9,8,null,null,false]
[null,"pomorskie","KM Gdańsk","JRG nr 3",null,null,null,null,null,null,null,null,9,8,null,null,false]
[null,"pomorskie","KM Gdańsk","JRG nr 4",null,null,null,null,null,null,null,null,9,8,null,null,false]
[null,"pomorskie","KM Gdańsk","JRG nr 5",null,null,null,null,null,null,null,null,9,8,null,null,false]
[null,"pomorskie","KM Gdynia","Komenda",null,null,null,null,null,null,null,null,9,7,null,null,false]
[null,"pomorskie","KM Gdynia","JRG nr 1",null,null,null,null,null,null,null,null,9,8,null,null,false]
[null,"pomorskie","KM Gdynia","JRG nr 2",null,null,null,null,null,null,null,null,9,8,null,null,false]
[null,"pomorskie","KM Gdynia","JRG nr 3",null,null,null,null,null,null,null,null,9,8,null,null,false]
[null,"pomorskie","KM Gdynia","JRG nr 4",null,null,null,null,null,null,null,null,9,8,null,null,false]
[null,"pomorskie","KP Kartuzy","Komenda",null,null,null,null,null,null,null,null,10,7,null,null,false]
[null,"pomorskie","KP Kartuzy","JRG Kartuzy",null,null,null,null,null,null,null,null,10,11,null,null,false]
[null,"pomorskie","KP Kościerzyna","Komenda",null,null,null,null,null,null,null,null,14,7,null,null,false]
[null,"pomorskie","KP Kościerzyna","JRG Kościerzyna",null,null,null,null,null,null,null,null,14,15,null,null,false]
[null,"pomorskie","KP Kwidzyn","Komenda",null,null,null,null,null,null,null,null,10,7,null,null,false]
[null,"pomorskie","KP Kwidzyn","JRG Kwidzyn",null,null,null,null,null,null,null,null,10,11,null,null,false]
[null,"pomorskie","KP Lębork","Komenda",null,null,null,null,null,null,null,null,9,7,null,null,false]
[null,"pomorskie","KP Lębork","JRG Lębork",null,null,null,null,null,null,null,null,9,10,null,null,false]
[null,"pomorskie","KP Malbork","Komenda",null,null,null,null,null,null,null,null,10,7,null,null,false]
[null,"pomorskie","KP Malbork","JRG Malbork",null,null,null,null,null,null,null,null,10,11,null,null,false]
[null,"pomorskie","KP Nowy Dwór Gd.","Komenda",null,null,null,null,null,null,null,null,16,7,null,null,false]
[null,"pomorskie","KP Nowy Dwór Gd.","JRG Nowy Dwór Gd.",null,null,null,null,null,null,null,null,16,17,null,null,false]
[null,"pomorskie","KP Pruszcz Gdański","Komenda",null,null,null,null,null,null,null,null,18,7,null,null,false]
[null,"pomorskie","KP Pruszcz Gdański","JRG Prusz Gd.",null,null,null,null,null,null,null,null,18,13,null,null,false]
[null,"pomorskie","KP Puck","Komenda",null,null,null,null,null,null,null,null,7,7,null,null,false]
[null,"pomorskie","KP Puck","JRG Puck",null,null,null,null,null,null,null,null,7,8,null,null,false]
[null,"pomorskie","KM Słupsk","Komenda",null,null,null,null,null,null,null,null,9,7,null,null,false]
[null,"pomorskie","KM Słupsk","JRG nr 1",null,null,null,null,null,null,null,null,9,8,null,null,false]
[null,"pomorskie","KM Słupsk","JRG nr 2",null,null,null,null,null,null,null,null,9,8,null,null,false]
[null,"pomorskie","KM Słupsk","JRG nr 3 Ustka",null,null,null,null,null,null,null,null,9,14,null,null,false]
[null,"pomorskie","KM Sopot","Komenda",null,null,null,null,null,null,null,null,8,7,null,null,false]
[null,"pomorskie","KM Sopot","JRG Sopot",null,null,null,null,null,null,null,null,8,9,null,null,false]
[null,"pomorskie","KP Starogard Gdański","Komenda",null,null,null,null,null,null,null,null,20,7,null,null,false]
[null,"pomorskie","KP Starogard Gdański","JRG Starogard Gd.",null,null,null,null,null,null,null,null,20,17,null,null,false]
[null,"pomorskie","KP Sztum","Komenda",null,null,null,null,null,null,null,null,8,7,null,null,false]
[null,"pomorskie","KP Sztum","JRG Sztum",null,null,null,null,null,null,null,null,8,9,null,null,false]
[null,"pomorskie","KP Tczew","Komenda",null,null,null,null,null,null,null,null,8,7,null,null,false]
[null,"pomorskie","KP Tczew","JRG Tczew",null,null,null,null,null,null,null,null,8,9,null,null,false]
[null,"pomorskie","KP Wejherowo","Komenda",null,null,null,null,null,null,null,null,12,7,null,null,false]
[null,"pomorskie","KP Wejherowo","JRG nr 1 Wejherowo",null,null,null,null,null,null,null,null,12,18,null,null,false]
[null,"pomorskie","KP Wejherowo","JRG nr 2 Rumia",null,null,null,null,null,null,null,null,12,14,null,null,false]
[null,"śląskie","KW PSP Katowice","Komenda",null,null,null,null,null,null,null,null,15,7,null,null,false]
[null,"śląskie","KP Będzin","Komenda",null,null,null,null,null,null,null,null,9,7,null,null,true]
[null,"śląskie","KP Będzin","JRG",null,null,null,null,null,null,null,null,9,3,null,null,false]
[null,"śląskie","KM Bielsko-Biała","Komenda",null,null,null,null,null,null,null,null,16,7,null,null,false]
[null,"śląskie","KM Bielsko-Biała","JRG nr1",null,null,null,null,null,null,null,null,{"$f":"LEN(C583)","v":16},{"$f":"LEN(D583)","v":7},null,null,false]
[null,"śląskie","KM Bielsko-Biała","JRG nr 2",null,null,null,null,null,null,null,null,16,8,null,null,{"$f":"EXACT(D584,D583)","v":false}]
[null,"śląskie","KM Bytom","Komenda",null,null,null,null,null,null,null,null,8,7,null,null,false]
[null,"śląskie","KM Bytom","JRG w Bytomiu",null,null,null,null,null,null,null,null,8,13,null,null,false]
[null,"śląskie","KM Chorzów","Komenda",null,null,null,null,null,null,null,null,10,7,null,null,false]
[null,"śląskie","KM Chorzów","JRG w Chorzowie",null,null,null,null,null,null,null,null,10,15,null,null,false]
[null,"śląskie","KP Cieszyn","Komenda",null,null,null,null,null,null,null,null,10,7,null,null,false]
[null,"śląskie","KP Cieszyn","JRG Cieszyn",null,null,null,null,null,null,null,null,10,11,null,null,false]
[null,"śląskie","KP Cieszyn","JRG Skoczów",null,null,null,null,null,null,null,null,10,11,null,null,false]
[null,"śląskie","KP Cieszyn","JRG Ustroń",null,null,null,null,null,null,null,null,10,10,null,null,false]
[null,"śląskie","KM Częstochowa","Komenda",null,null,null,null,null,null,null,null,14,7,null,null,false]
[null,"śląskie","KM Częstochowa","JRG 1",null,null,null,null,null,null,null,null,14,5,null,null,false]
[null,"śląskie","KM Częstochowa","JRG 2",null,null,null,null,null,null,null,null,14,5,null,null,false]
[null,"śląskie","KM Częstochowa","JRG 3",null,null,null,null,null,null,null,null,14,5,null,null,false]
[null,"śląskie","KM Częstochowa","JRG 4",null,null,null,null,null,null,null,null,14,5,null,null,false]
[null,"śląskie","KM Dąbrowa Górnicza","Komenda",null,null,null,null,null,null,null,null,19,7,null,null,false]
[null,"śląskie","KM Dąbrowa Górnicza","JRG",null,null,null,null,null,null,null,null,19,3,null,null,false]
[null,"śląskie","KM Gliwice","Komenda",null,null,null,null,null,null,null,null,10,7,null,null,false]
[null,"śląskie","KM Gliwice","JRG Gliwice",null,null,null,null,null,null,null,null,10,11,null,null,false]
[null,"śląskie","KM Gliwice","JRG Gliwice Łabędy ",null,null,null,null,null,null,null,null,10,19,null,null,false]
[null,"śląskie","KM Gliwice","JRG Knurów",null,null,null,null,null,null,null,null,10,10,null,null,false]
[null,"śląskie","KM Gliwice","JRG Pyskowice",null,null,null,null,null,null,null,null,10,13,null,null,false]
[null,"śląskie","KM Jastrzębie Zdrój","Komenda",null,null,null,null,null,null,null,null,19,7,null,null,false]
[null,"śląskie","KM Jastrzębie Zdrój","JRG w Jastrzębiu-Zdroju",null,null,null,null,null,null,null,null,19,23,null,null,false]
[null,"śląskie","KM Jaworzno","Komenda",null,null,null,null,null,null,null,null,11,7,null,null,false]
[null,"śląskie","KM Jaworzno","JRG",null,null,null,null,null,null,null,null,11,3,null,null,false]
[null,"śląskie","KM Katowice","Komenda",null,null,null,null,null,null,null,null,11,7,null,null,false]
[null,"śląskie","KM Katowice","JRG nr 1",null,null,null,null,null,null,null,null,11,8,null,null,false]
[null,"śląskie","KM Katowice","JRG nr 2",null,null,null,null,null,null,null,null,11,8,null,null,false]
[null,"śląskie","KM Katowice","JRG nr 3",null,null,null,null,null,null,null,null,11,8,null,null,false]
[null,"śląskie","KP Kłobuck","Komenda",null,null,null,null,null,null,null,null,10,7,null,null,false]
[null,"śląskie","KP Kłobuck","JRG w Kłobucku",null,null,null,null,null,null,null,null,10,14,null,null,false]
[null,"śląskie","KP Lubliniec","Komenda",null,null,null,null,null,null,null,null,12,7,null,null,false]
[null,"śląskie","KP Lubliniec","JRG Lubliniec",null,null,null,null,null,null,null,null,12,13,null,null,false]
[null,"śląskie","KP Mikołów","Komenda",null,null,null,null,null,null,null,null,10,7,null,null,false]
[null,"śląskie","KP Mikołów","JRG Mikołów",null,null,null,null,null,null,null,null,10,11,null,null,false]
[null,"śląskie","KM Mysłowice","Komenda",null,null,null,null,null,null,null,null,12,7,null,null,false]
[null,"śląskie","KM Mysłowice","JRG Mysłowice",null,null,null,null,null,null,null,null,12,13,null,null,false]
[null,"śląskie","KP Myszków","Komenda",null,null,null,null,null,null,null,null,10,7,null,null,false]
[null,"śląskie","KP Myszków","JRG Myszków",null,null,null,null,null,null,null,null,10,11,null,null,false]
[null,"śląskie","KM Piekary Śląskie","Komenda",null,null,null,null,null,null,null,null,18,7,null,null,false]
[null,"śląskie","KM Piekary Śląskie","JRG Piekary Śl.",null,null,null,null,null,null,null,null,18,15,null,null,false]
[null,"śląskie","KP Pszczyna","Komenda",null,null,null,null,null,null,null,null,11,7,null,null,false]
[null,"śląskie","KP Pszczyna","JRG Pszczyna",null,null,null,null,null,null,null,null,11,12,null,null,false]
[null,"śląskie","KP Racibórz","Komenda",null,null,null,null,null,null,null,null,11,7,null,null,false]
[null,"śląskie","KP Racibórz","JRG Racibórz",null,null,null,null,null,null,null,null,11,12,null,null,false]
[null,"śląskie","KM Ruda Śląska","Komenda",null,null,null,null,null,null,null,null,14,7,null,null,false]
[null,"śląskie","KM Ruda Śląska","JRG 1 Wirek",null,null,null,null,null,null,null,null,14,11,null,null,false]
[null,"śląskie","KM Ruda Śląska","JRG 2 Orzegów",null,null,null,null,null,null,null,null,14,13,null,null,false]
[null,"śląskie","KM Rybnik","Komenda",null,null,null,null,null,null,null,null,9,7,null,null,false]
[null,"śląskie","KM Rybnik","JRG Rybnik",null,null,null,null,null,null,null,null,9,10,null,null,false]
[null,"śląskie","KM Siemianowice Śląskie","Komenda",null,null,null,null,null,null,null,null,23,7,null,null,false]
[null,"śląskie","KM Siemianowice Śląskie","JRG Siemianowice Śl.",null,null,null,null,null,null,null,null,23,20,null,null,false]
[null,"śląskie","KM Sosnowiec","Komenda",null,null,null,null,null,null,null,null,12,7,null,null,false]
[null,"śląskie","KM Sosnowiec","JRG nr 1 \"Centrum\"",null,null,null,null,null,null,null,null,12,18,null,null,false]
[null,"śląskie","KM Sosnowiec","JRG nr 2 \"Porąbka\"",null,null,null,null,null,null,null,null,12,18,null,null,false]
[null,"śląskie","KM Świętochłowice","Komenda",null,null,null,null,null,null,null,null,17,7,null,null,false]
[null,"śląskie","KM Świętochłowice","JRG Świętochłowicach",null,null,null,null,null,null,null,null,17,20,null,null,false]
[null,"śląskie","KP Tarnowskie Góry","Komenda",null,null,null,null,null,null,null,null,18,7,null,null,false]
[null,"śląskie","KP Tarnowskie Góry","JRG w Tarnowskich Górach",null,null,null,null,null,null,null,null,18,24,null,null,false]
[null,"śląskie","KP Tarnowskie Góry","JRG w Radzionkowie",null,null,null,null,null,null,null,null,18,18,null,null,false]
[null,"śląskie","KM Tychy","Komenda",null,null,null,null,null,null,null,null,8,7,null,null,false]
[null,"śląskie","KM Tychy","JRG Tychy",null,null,null,null,null,null,null,null,8,9,null,null,false]
[null,"śląskie","KP Wodzisław Śląski","Komenda",null,null,null,null,null,null,null,null,19,7,null,null,false]
[null,"śląskie","KP Wodzisław Śląski","JRG Wodzisław Śl.",null,null,null,null,null,null,null,null,{"$f":"LEN(C647)","v":19},{"$f":"LEN(D647)","v":17},null,null,false]
[null,"śląskie","KP Wodzisław Śląski","JRG Rydułtowy",null,null,null,null,null,null,null,null,19,13,null,null,{"$f":"EXACT(D648,D647)","v":false}]
[null,"śląskie","KM Zabrze","Komenda",null,null,null,null,null,null,null,null,9,7,null,null,false]
[null,"śląskie","KM Zabrze","JRG w Zabrzu",null,null,null,null,null,null,null,null,9,12,null,null,false]
[null,"śląskie","KP Zawiercie","Komenda",null,null,null,null,null,null,null,null,12,7,null,null,false]
[null,"śląskie","KP Zawiercie","JRG Zawiercie",null,null,null,null,null,null,null,null,12,13,null,null,false]
[null,"śląskie","KM Żory","Komenda",null,null,null,null,null,null,null,null,7,7,null,null,false]
[null,"śląskie","KM Żory","JRG w Żorach",null,null,null,null,null,null,null,null,7,12,null,null,false]
[null,"śląskie","KP Żywiec","Komenda",null,null,null,null,null,null,null,null,9,7,null,null,false]
[null,"śląskie","KP Żywiec","JRG Żywiec",null,null,null,null,null,null,null,null,9,10,null,null,false]
[null,"świętokrzyskie","KW PSP Kielce","Komenda",null,null,null,null,null,null,null,null,13,7,null,null,false]
[null,"świętokrzyskie","KP PSP Busko-Zdrój","Komenda",null,null,null,null,null,null,null,null,18,7,null,null,true]
[null,"świętokrzyskie","KP PSP Busko-Zdrój","JRG Busko-Zdrój",null,null,null,null,null,null,null,null,18,15,null,null,false]
[null,"świętokrzyskie","KP Jędrzejów","Komenda",null,null,null,null,null,null,null,null,12,7,null,null,false]
[null,"świętokrzyskie","KP Jędrzejów","JRG Jędrzejów",null,null,null,null,null,null,null,null,12,13,null,null,false]
[null,"świętokrzyskie","KP Kazimierza Wielka","Komenda",null,null,null,null,null,null,null,null,20,7,null,null,false]
[null,"świętokrzyskie","KP Kazimierza Wielka","JRG Kazimierza Wlk.",null,null,null,null,null,null,null,null,20,19,null,null,false]
[null,"świętokrzyskie","KM PSP Kielce","Komenda",null,null,null,null,null,null,null,null,13,7,null,null,false]
[null,"świętokrzyskie","KM PSP Kielce","JRG nr 1",null,null,null,null,null,null,null,null,13,8,null,null,false]
[null,"świętokrzyskie","KM PSP Kielce","JRG nr 2",null,null,null,null,null,null,null,null,13,8,null,null,false]
[null,"świętokrzyskie","KM PSP Kielce","JRG nr 3",null,null,null,null,null,null,null,null,13,8,null,null,false]
[null,"świętokrzyskie","KM PSP Kielce","JRG nr 4",null,null,null,null,null,null,null,null,13,8,null,null,false]
[null,"świętokrzyskie","KP Końskie","Komenda",null,null,null,null,null,null,null,null,10,7,null,null,false]
[null,"świętokrzyskie","KP Końskie","Końskie",null,null,null,null,null,null,null,null,10,7,null,null,false]
[null,"świętokrzyskie","KP Opatów","Komenda",null,null,null,null,null,null,null,null,9,7,null,null,false]
[null,"świętokrzyskie","KP Opatów","Opatów",null,null,null,null,null,null,null,null,9,6,null,null,false]
[null,"świętokrzyskie","KP Ostrowiec Świętokrzyski","Komenda",null,null,null,null,null,null,null,null,26,7,null,null,false]
[null,"świętokrzyskie","KP Ostrowiec Świętokrzyski","JRG nr 1",null,null,null,null,null,null,null,null,26,8,null,null,false]
[null,"świętokrzyskie","KP Ostrowiec Świętokrzyski","JRG nr 2",null,null,null,null,null,null,null,null,26,8,null,null,false]
[null,"świętokrzyskie","KP Pińczów","Komenda",null,null,null,null,null,null,null,null,10,7,null,null,false]
[null,"świętokrzyskie","KP Pińczów","JRG Pińczów",null,null,null,null,null,null,null,null,10,11,null,null,false]
[null,"świętokrzyskie","KP Sandomierz","Komenda",null,null,null,null,null,null,null,null,13,7,null,null,false]
[null,"świętokrzyskie","KP Sandomierz","JRG Sandomierz",null,null,null,null,null,null,null,null,13,14,null,null,false]
[null,"świętokrzyskie","KP Skarżysko-Kamienna","Komenda",null,null,null,null,null,null,null,null,21,7,null,null,false]
[null,"świętokrzyskie","KP Skarżysko-Kamienna","JRG Skarżysko Kam.",null,null,null,null,null,null,null,null,21,18,null,null,false]
[null,"świętokrzyskie","KP Starachowice","Komenda",null,null,null,null,null,null,null,null,15,7,null,null,false]
[null,"świętokrzyskie","KP Starachowice","JRG Starachowice",null,null,null,null,null,null,null,null,15,16,null,null,false]
[null,"świętokrzyskie","KP Staszów","Komenda",null,null,null,null,null,null,null,null,10,7,null,null,false]
[null,"świętokrzyskie","KP Staszów","JRG Staszów",null,null,null,null,null,null,null,null,10,11,null,null,false]
[null,"świętokrzyskie","KP Włoszczowa","Komenda",null,null,null,null,null,null,null,null,13,7,null,null,false]
[null,"świętokrzyskie","KP Włoszczowa","JRg Włoszczowa",null,null,null,null,null,null,null,null,13,14,null,null,false]
[null,"warmińsko-mazurskie","KW PSP Olsztyn","Komenda",null,null,null,null,null,null,null,null,14,7,null,null,false]
[null,"warmińsko-mazurskie","KM PSP Olsztyn","Komenda",null,null,null,null,null,null,null,null,14,7,null,null,true]
[null,"warmińsko-mazurskie","KM PSP Olsztyn","Olsztyn nr 1",null,null,null,null,null,null,null,null,14,12,null,null,false]
[null,"warmińsko-mazurskie","KM PSP Olsztyn","Olsztyn nr 2",null,null,null,null,null,null,null,null,14,12,null,null,false]
[null,"warmińsko-mazurskie","KM PSP Olsztyn","Biskupiec nr 3",null,null,null,null,null,null,null,null,14,14,null,null,false]
[null,"warmińsko-mazurskie","KM PSP Elbląg","Komenda",null,null,null,null,null,null,null,null,13,7,null,null,false]
[null,"warmińsko-mazurskie","KM PSP Elbląg","JRG Elbląg nr 1",null,null,null,null,null,null,null,null,13,15,null,null,false]
[null,"warmińsko-mazurskie","KM PSP Elbląg","JRG Elbląg nr 2",null,null,null,null,null,null,null,null,13,15,null,null,false]
[null,"warmińsko-mazurskie","KM PSP Elbląg","Pasłęk nr 3",null,null,null,null,null,null,null,null,13,11,null,null,false]
[null,"warmińsko-mazurskie","KP PSP Bartoszyce","Komenda",null,null,null,null,null,null,null,null,17,7,null,null,false]
[null,"warmińsko-mazurskie","KP PSP Bartoszyce","Bartoszyce nr 1",null,null,null,null,null,null,null,null,17,15,null,null,false]
[null,"warmińsko-mazurskie","KP PSP Braniewo","Komenda",null,null,null,null,null,null,null,null,15,7,null,null,false]
[null,"warmińsko-mazurskie","KP PSP Braniewo","Braniewo nr 1",null,null,null,null,null,null,null,null,15,13,null,null,false]
[null,"warmińsko-mazurskie","KP PSP Działdowo","Komenda",null,null,null,null,null,null,null,null,16,7,null,null,false]
[null,"warmińsko-mazurskie","KP PSP Działdowo","JRG Działdowo nr 1",null,null,null,null,null,null,null,null,16,18,null,null,false]
[null,"warmińsko-mazurskie","KP PSP Ełk","Komenda",null,null,null,null,null,null,null,null,10,7,null,null,false]
[null,"warmińsko-mazurskie","KP PSP Ełk","JRG Ełk nr 1",null,null,null,null,null,null,null,null,10,12,null,null,false]
[null,"warmińsko-mazurskie","KP PSP Giżycko","Komenda",null,null,null,null,null,null,null,null,14,7,null,null,false]
[null,"warmińsko-mazurskie","KP PSP Giżycko","JRG Giżycko nr 1",null,null,null,null,null,null,null,null,14,16,null,null,false]
[null,"warmińsko-mazurskie","KP PSP Gołdap","Komenda",null,null,null,null,null,null,null,null,13,7,null,null,false]
[null,"warmińsko-mazurskie","KP PSP Gołdap","JRG Gołdap nr 1",null,null,null,null,null,null,null,null,13,15,null,null,false]
[null,"warmińsko-mazurskie","KP PSP Iława","Komenda",null,null,null,null,null,null,null,null,12,7,null,null,false]
[null,"warmińsko-mazurskie","KP PSP Iława","JRG Iława nr 1",null,null,null,null,null,null,null,null,12,14,null,null,false]
[null,"warmińsko-mazurskie","KP PSP Kętrzyn","Komenda",null,null,null,null,null,null,null,null,{"$f":"LEN(C711)","v":14},{"$f":"LEN(D711)","v":7},null,null,false]
[null,"warmińsko-mazurskie","KP PSP Kętrzyn","JRG Kętrzyn nr 1",null,null,null,null,null,null,null,null,14,16,null,null,{"$f":"EXACT(D712,D711)","v":false}]
[null,"warmińsko-mazurskie","KP PSP Lidzbark Warmiński","Komenda",null,null,null,null,null,null,null,null,25,7,null,null,false]
[null,"warmińsko-mazurskie","KP PSP Lidzbark Warmiński","JRG Lidzbark W. nr 1",null,null,null,null,null,null,null,null,25,20,null,null,false]
[null,"warmińsko-mazurskie","KP PSP Mrągowo","Komenda",null,null,null,null,null,null,null,null,14,7,null,null,false]
[null,"warmińsko-mazurskie","KP PSP Mrągowo","JRG Mrągowo nr 1",null,null,null,null,null,null,null,null,14,16,null,null,false]
[null,"warmińsko-mazurskie","KP PSP Nidzica","Komenda",null,null,null,null,null,null,null,null,14,7,null,null,false]
[null,"warmińsko-mazurskie","KP PSP Nidzica","JRG Nidzica nr 1",null,null,null,null,null,null,null,null,14,16,null,null,false]
[null,"warmińsko-mazurskie","KP Nowe Miasto Lubawskie","Komenda",null,null,null,null,null,null,null,null,24,7,null,null,false]
[null,"warmińsko-mazurskie","KP Nowe Miasto Lubawskie","JRG NML nr 1",null,null,null,null,null,null,null,null,24,12,null,null,false]
[null,"warmińsko-mazurskie","KP PSP Olecko","Komenda",null,null,null,null,null,null,null,null,13,7,null,null,false]
[null,"warmińsko-mazurskie","KP PSP Olecko","JRG Olecko nr 1",null,null,null,null,null,null,null,null,13,15,null,null,false]
[null,"warmińsko-mazurskie","KP PSP Ostróda","Komenda",null,null,null,null,null,null,null,null,14,7,null,null,false]
[null,"warmińsko-mazurskie","KP PSP Ostróda","JRG Ostróda nr 1",null,null,null,null,null,null,null,null,14,16,null,null,false]
[null,"warmińsko-mazurskie","KP PSP Ostróda","JRG Morąg nr 2",null,null,null,null,null,null,null,null,14,14,null,null,false]
[null,"warmińsko-mazurskie","KP PSP Pisz","Komenda",null,null,null,null,null,null,null,null,11,7,null,null,false]
[null,"warmińsko-mazurskie","KP PSP Pisz","JRG Pisz nr 1",null,null,null,null,null,null,null,null,11,13,null,null,false]
[null,"warmińsko-mazurskie","KP PSP Szczytno","Komenda",null,null,null,null,null,null,null,null,15,7,null,null,false]
[null,"warmińsko-mazurskie","KP PSP Szczytno","JRG Szczytno nr 1",null,null,null,null,null,null,null,null,15,17,null,null,false]
[null,"warmińsko-mazurskie","KP PSP Węgorzewo","Komenda",null,null,null,null,null,null,null,null,16,7,null,null,false]
[null,"warmińsko-mazurskie","KP PSP Węgorzewo","JRG Węgorzewo nr 1",null,null,null,null,null,null,null,null,16,18,null,null,false]
[null,"wielkopolskie","KW PSP Poznań","Komenda",null,null,null,null,null,null,null,null,13,7,null,null,false]
[null,"wielkopolskie","KP PSP Chodzież","Komenda",null,null,null,null,null,null,null,null,15,7,null,null,true]
[null,"wielkopolskie","KP PSP Chodzież","JRG Chodzieży",null,null,null,null,null,null,null,null,15,13,null,null,false]
[null,"wielkopolskie","KP PSP Czarnków","Komenda",null,null,null,null,null,null,null,null,15,7,null,null,false]
[null,"wielkopolskie","KP PSP Czarnków","JRG w Czarnkowie",null,null,null,null,null,null,null,null,15,16,null,null,false]
[null,"wielkopolskie","KP PSP Czarnków","JRG w Trzciance",null,null,null,null,null,null,null,null,15,15,null,null,false]
[null,"wielkopolskie","KP PSP Gniezno","Komenda",null,null,null,null,null,null,null,null,14,7,null,null,false]
[null,"wielkopolskie","KP PSP Gniezno","JRG Gniezno",null,null,null,null,null,null,null,null,14,11,null,null,false]
[null,"wielkopolskie","KP PSP Gostyń","Komenda",null,null,null,null,null,null,null,null,13,7,null,null,false]
[null,"wielkopolskie","KP PSP Gostyń","JRG Gostyń",null,null,null,null,null,null,null,null,13,10,null,null,false]
[null,"wielkopolskie","KP PSP Grodzisk Wlkp.","Komenda",null,null,null,null,null,null,null,null,21,7,null,null,false]
[null,"wielkopolskie","KP PSP Grodzisk Wlkp.","JRG Grodzisk Wlkp.",null,null,null,null,null,null,null,null,21,18,null,null,false]
[null,"wielkopolskie","KP PSP Jarocin","Komenda",null,null,null,null,null,null,null,null,14,7,null,null,false]
[null,"wielkopolskie","KP PSP Jarocin","JRG Jarocinie",null,null,null,null,null,null,null,null,14,13,null,null,false]
[null,"wielkopolskie","KM PSP Kalisz","Komenda",null,null,null,null,null,null,null,null,13,7,null,null,false]
[null,"wielkopolskie","KM PSP Kalisz","JRG nr 1",null,null,null,null,null,null,null,null,13,8,null,null,false]
[null,"wielkopolskie","KM PSP Kalisz","JRG nr 2",null,null,null,null,null,null,null,null,13,8,null,null,false]
[null,"wielkopolskie","KP PSP Kępno","Komenda",null,null,null,null,null,null,null,null,12,7,null,null,false]
[null,"wielkopolskie","KP PSP Kępno","JRG Kępno",null,null,null,null,null,null,null,null,12,9,null,null,false]
[null,"wielkopolskie","KP PSP Koło","Komenda",null,null,null,null,null,null,null,null,11,7,null,null,false]
[null,"wielkopolskie","KP PSP Koło","JRG Koło",null,null,null,null,null,null,null,null,11,8,null,null,false]
[null,"wielkopolskie","KM PSP Konin","Komenda",null,null,null,null,null,null,null,null,12,7,null,null,false]
[null,"wielkopolskie","KM PSP Konin","JRG Nr 1",null,null,null,null,null,null,null,null,12,8,null,null,false]
[null,"wielkopolskie","KM PSP Konin","JRG Nr 2",null,null,null,null,null,null,null,null,12,8,null,null,false]
[null,"wielkopolskie","KP PSP Kościan","Komenda",null,null,null,null,null,null,null,null,14,7,null,null,false]
[null,"wielkopolskie","KP PSP Kościan","JRG Kościan",null,null,null,null,null,null,null,null,14,11,null,null,false]
[null,"wielkopolskie","KP PSP Krotoszyn","Komenda",null,null,null,null,null,null,null,null,16,7,null,null,false]
[null,"wielkopolskie","KP PSP Krotoszyn","JRG Krotoszyn",null,null,null,null,null,null,null,null,16,13,null,null,false]
[null,"wielkopolskie","KM PSP Leszno","Komenda",null,null,null,null,null,null,null,null,13,7,null,null,false]
[null,"wielkopolskie","KM PSP Leszno","JRG Leszno",null,null,null,null,null,null,null,null,13,10,null,null,false]
[null,"wielkopolskie","KP PSP Międzychód","Komenda",null,null,null,null,null,null,null,null,17,7,null,null,false]
[null,"wielkopolskie","KP PSP Międzychód","JRG Międzychód",null,null,null,null,null,null,null,null,17,14,null,null,false]
[null,"wielkopolskie","KP PSP Nowy Tomyśl","Komenda",null,null,null,null,null,null,null,null,18,7,null,null,false]
[null,"wielkopolskie","KP PSP Nowy Tomyśl","JRG w Nowym Tomyślu",null,null,null,null,null,null,null,null,18,19,null,null,false]
[null,"wielkopolskie","KP PSP Oborniki","Komenda",null,null,null,null,null,null,null,null,15,7,null,null,false]
[null,"wielkopolskie","KP PSP Oborniki","JRG w Obornikach",null,null,null,null,null,null,null,null,15,16,null,null,false]
[null,"wielkopolskie","KP PSP Ostrów Wlkp.","Komenda",null,null,null,null,null,null,null,null,19,7,null,null,false]
[null,"wielkopolskie","KP PSP Ostrów Wlkp.","JRG Ostrów Wlkp.",null,null,null,null,null,null,null,null,19,16,null,null,false]
[null,"wielkopolskie","KP PSP Ostrzeszów","Komenda",null,null,null,null,null,null,null,null,17,7,null,null,false]
[null,"wielkopolskie","KP PSP Ostrzeszów","JRG w Ostrzeszowie",null,null,null,null,null,null,null,null,17,18,null,null,false]
[null,"wielkopolskie","KP PSP Piła","Komenda",null,null,null,null,null,null,null,null,11,7,null,null,false]
[null,"wielkopolskie","KP PSP Piła","JRG Piła nr 1",null,null,null,null,null,null,null,null,11,13,null,null,false]
[null,"wielkopolskie","KP PSP Piła","JRG Piła nr 2",null,null,null,null,null,null,null,null,11,13,null,null,false]
[null,"wielkopolskie","KP PSP Pleszew","Komenda",null,null,null,null,null,null,null,null,{"$f":"LEN(C775)","v":14},{"$f":"LEN(D775)","v":7},null,null,false]
[null,"wielkopolskie","KP PSP Pleszew","JRG Pleszew",null,null,null,null,null,null,null,null,14,11,null,null,{"$f":"EXACT(D776,D775)","v":false}]
[null,"wielkopolskie","KM PSP Poznań","Komenda",null,null,null,null,null,null,null,null,13,7,null,null,false]
[null,"wielkopolskie","KM PSP Poznań","JRG 1",null,null,null,null,null,null,null,null,13,5,null,null,false]
[null,"wielkopolskie","KM PSP Poznań","JRG 2",null,null,null,null,null,null,null,null,13,5,null,null,false]
[null,"wielkopolskie","KM PSP Poznań","JRG 3",null,null,null,null,null,null,null,null,13,5,null,null,false]
[null,"wielkopolskie","KM PSP Poznań","JRG 4",null,null,null,null,null,null,null,null,13,5,null,null,false]
[null,"wielkopolskie","KM PSP Poznań","JRG 5",null,null,null,null,null,null,null,null,13,5,null,null,false]
[null,"wielkopolskie","KM PSP Poznań","JRG 6",null,null,null,null,null,null,null,null,13,5,null,null,false]
[null,"wielkopolskie","KM PSP Poznań","JRG 7",null,null,null,null,null,null,null,null,13,5,null,null,false]
[null,"wielkopolskie","KM PSP Poznań","JRG 8",null,null,null,null,null,null,null,null,13,5,null,null,false]
[null,"wielkopolskie","KM PSP Poznań","JRG 9",null,null,null,null,null,null,null,null,13,5,null,null,false]
[null,"wielkopolskie","KP PSP Rawicz","Komenda",null,null,null,null,null,null,null,null,13,7,null,null,false]
[null,"wielkopolskie","KP PSP Rawicz","JRG Rawicz",null,null,null,null,null,null,null,null,13,10,null,null,false]
[null,"wielkopolskie","KP PSP Słupca","Komenda",null,null,null,null,null,null,null,null,13,7,null,null,false]
[null,"wielkopolskie","KP PSP Słupca","JRG Słupca",null,null,null,null,null,null,null,null,13,10,null,null,false]
[null,"wielkopolskie","KP PSP Szamotuły","Komenda",null,null,null,null,null,null,null,null,16,7,null,null,false]
[null,"wielkopolskie","KP PSP Szamotuły","JRG Szamotuły",null,null,null,null,null,null,null,null,16,13,null,null,false]
[null,"wielkopolskie","KP PSP Śrem","Komenda",null,null,null,null,null,null,null,null,11,7,null,null,false]
[null,"wielkopolskie","KP PSP Śrem","JRG Śrem",null,null,null,null,null,null,null,null,11,8,null,null,false]
[null,"wielkopolskie","KP PSP Środa Wlkp.","Komenda",null,null,null,null,null,null,null,null,18,7,null,null,false]
[null,"wielkopolskie","KP PSP Środa Wlkp.","JRG Środa Wlkp.",null,null,null,null,null,null,null,null,18,15,null,null,false]
[null,"wielkopolskie","KP PSP Turek","Komenda",null,null,null,null,null,null,null,null,12,7,null,null,false]
[null,"wielkopolskie","KP PSP Turek","JRG Turek",null,null,null,null,null,null,null,null,12,9,null,null,false]
[null,"wielkopolskie","KP PSP Wągrowiec ","Komenda",null,null,null,null,null,null,null,null,17,7,null,null,false]
[null,"wielkopolskie","KP PSP Wągrowiec ","JRG Wągrowiec",null,null,null,null,null,null,null,null,17,13,null,null,false]
[null,"wielkopolskie","KP PSP Wolsztyn","Komenda",null,null,null,null,null,null,null,null,15,7,null,null,false]
[null,"wielkopolskie","KP PSP Wolsztyn","JRG Wolsztyn",null,null,null,null,null,null,null,null,15,12,null,null,false]
[null,"wielkopolskie","KP PSP Września","Komenda",null,null,null,null,null,null,null,null,15,7,null,null,false]
[null,"wielkopolskie","KP PSP Września","JRG Września",null,null,null,null,null,null,null,null,15,12,null,null,false]
[null,"wielkopolskie","KP PSP Złotów","Komenda",null,null,null,null,null,null,null,null,13,7,null,null,false]
[null,"wielkopolskie","KP PSP Złotów","JRG Złotowie",null,null,null,null,null,null,null,null,13,12,null,null,false]
[null,"zachodniopomorskie","KW PSP Szczecin","Komenda",null,null,null,null,null,null,null,null,15,7,null,null,false]
[null,"zachodniopomorskie","KP Białogard","Komenda",null,null,null,null,null,null,null,null,12,7,null,null,true]
[null,"zachodniopomorskie","KP Białogard","JRG  Białogard",null,null,null,null,null,null,null,null,12,14,null,null,false]
[null,"zachodniopomorskie","KP Choszczno","Komenda",null,null,null,null,null,null,null,null,12,7,null,null,false]
[null,"zachodniopomorskie","KP Choszczno","JRG Choszczno",null,null,null,null,null,null,null,null,12,13,null,null,false]
[null,"zachodniopomorskie","KP Drawsko Pomorskie","Komenda",null,null,null,null,null,null,null,null,20,7,null,null,false]
[null,"zachodniopomorskie","KP Drawsko Pomorskie","JRG Drawsko Pom.",null,null,null,null,null,null,null,null,20,16,null,null,false]
[null,"zachodniopomorskie","KP Goleniów","Komenda",null,null,null,null,null,null,null,null,11,7,null,null,false]
[null,"zachodniopomorskie","KP Goleniów","JRG Goleniów",null,null,null,null,null,null,null,null,11,12,null,null,false]
[null,"zachodniopomorskie","KP Gryfice","Komenda",null,null,null,null,null,null,null,null,10,7,null,null,false]
[null,"zachodniopomorskie","KP Gryfice","JRG  Gryfice",null,null,null,null,null,null,null,null,10,12,null,null,false]
[null,"zachodniopomorskie","KP Gryfino","Komenda",null,null,null,null,null,null,null,null,10,7,null,null,false]
[null,"zachodniopomorskie","KP Gryfino","JRG Gryfino",null,null,null,null,null,null,null,null,10,11,null,null,false]
[null,"zachodniopomorskie","KP Kamień Pomorski","Komenda",null,null,null,null,null,null,null,null,18,7,null,null,false]
[null,"zachodniopomorskie","KP Kamień Pomorski","JRG Kamień Pom.",null,null,null,null,null,null,null,null,18,15,null,null,false]
[null,"zachodniopomorskie","KP Kołobrzeg","Komenda",null,null,null,null,null,null,null,null,12,7,null,null,false]
[null,"zachodniopomorskie","KP Kołobrzeg","JRG Kołobrzeg",null,null,null,null,null,null,null,null,12,13,null,null,false]
[null,"zachodniopomorskie","KM Koszalin","Komenda",null,null,null,null,null,null,null,null,11,7,null,null,false]
[null,"zachodniopomorskie","KM Koszalin","JRG Nr 1",null,null,null,null,null,null,null,null,11,8,null,null,false]
[null,"zachodniopomorskie","KM Koszalin","JRG Nr 2",null,null,null,null,null,null,null,null,11,8,null,null,false]
[null,"zachodniopomorskie","KP Łobez","Komenda",null,null,null,null,null,null,null,null,8,7,null,null,false]
[null,"zachodniopomorskie","KP Łobez","JRG Łobez",null,null,null,null,null,null,null,null,8,9,null,null,false]
[null,"zachodniopomorskie","KP Myślibórz","Komenda",null,null,null,null,null,null,null,null,12,7,null,null,false]
[null,"zachodniopomorskie","KP Myślibórz","JRG Myślibórz",null,null,null,null,null,null,null,null,12,13,null,null,false]
[null,"zachodniopomorskie","KP Police","Komenda",null,null,null,null,null,null,null,null,9,7,null,null,false]
[null,"zachodniopomorskie","KP Police","JRG Police",null,null,null,null,null,null,null,null,9,10,null,null,false]
[null,"zachodniopomorskie","KP Pyrzyce","Komenda",null,null,null,null,null,null,null,null,10,7,null,null,false]
[null,"zachodniopomorskie","KP Pyrzyce","JRG Pyrzyce",null,null,null,null,null,null,null,null,10,11,null,null,false]
[null,"zachodniopomorskie","KP Sławno","Komenda",null,null,null,null,null,null,null,null,9,7,null,null,false]
[null,"zachodniopomorskie","KP Sławno","JRG Sławno",null,null,null,null,null,null,null,null,9,10,null,null,false]
[null,"zachodniopomorskie","KP Stargard Szcz.","Komenda",null,null,null,null,null,null,null,null,17,7,null,null,false]
[null,"zachodniopomorskie","KP Stargard Szcz.","JRG Stargard Szcz.",null,null,null,null,null,null,null,null,17,18,null,null,false]
[null,"zachodniopomorskie","KM Szczecin","Komenda",null,null,null,null,null,null,null,null,{"$f":"LEN(C839)","v":11},{"$f":"LEN(D839)","v":7},null,null,false]
[null,"zachodniopomorskie","KM Szczecin","JRG 1",null,null,null,null,null,null,null,null,11,5,null,null,{"$f":"EXACT(D840,D839)","v":false}]
[null,"zachodniopomorskie","KM Szczecin","JRG 2 ",null,null,null,null,null,null,null,null,11,6,null,null,false]
[null,"zachodniopomorskie","KM Szczecin","JRG 3 ",null,null,null,null,null,null,null,null,11,6,null,null,false]
[null,"zachodniopomorskie","KM Szczecin","JRG 4",null,null,null,null,null,null,null,null,11,5,null,null,false]
[null,"zachodniopomorskie","KM Szczecin","JRG 5",null,null,null,null,null,null,null,null,11,5,null,null,false]
[null,"zachodniopomorskie","KP Szczecinek","Komenda",null,null,null,null,null,null,null,null,13,7,null,null,false]
[null,"zachodniopomorskie","KP Szczecinek","JRG Szczeciniek",null,null,null,null,null,null,null,null,13,15,null,null,false]
[null,"zachodniopomorskie","KP Świdwin","Komenda",null,null,null,null,null,null,null,null,10,7,null,null,false]
[null,"zachodniopomorskie","KP Świdwin","JRG Świdwin",null,null,null,null,null,null,null,null,10,11,null,null,false]
[null,"zachodniopomorskie","KM Świnoujście","Komenda",null,null,null,null,null,null,null,null,14,7,null,null,false]
[null,"zachodniopomorskie","KM Świnoujście","JRG Nr 1 Świnoujście",null,null,null,null,null,null,null,null,14,20,null,null,false]
[null,"zachodniopomorskie","KM Świnoujście","JRG Nr 2 Świnoujście",null,null,null,null,null,null,null,null,14,20,null,null,false]
[null,"zachodniopomorskie","KP Wałcz","Komenda",null,null,null,null,null,null,null,null,8,7,null,null,false]
[null,"zachodniopomorskie","KP Wałcz","JRG Wałcz",null,null,null,null,null,null,null,null,8,9,null,null,false]
[null,"zz jednostka centralna","KG PSP Warszawa","Komenda",null,null,null,null,null,null,null,null,15,7,null,null,false]
[null,"zz jednostka centralna","CMP Mysłowice","Komenda",null,null,null,null,null,null,null,null,13,7,null,null,true]
[null,"zz jednostka centralna","SGSP Warszawa","Komenda",null,null,null,null,null,null,null,null,13,7,null,null,true]
[null,"zz jednostka centralna","SA PSP Kraków","Komenda",null,null,null,null,null,null,null,null,13,7,null,null,true]
[null,"zz jednostka centralna","SA PSP Poznań","Komenda",null,null,null,null,null,null,null,null,13,7,null,null,true]
[null,"zz jednostka centralna","SP PSP Bydgoszcz","Komenda",null,null,null,null,null,null,null,null,16,7,null,null,true]
[null,"zz jednostka centralna","CS PSP Częstochowa","Komenda",null,null,null,null,null,null,null,null,18,7,null,null,true]